Workbook

Sheet zászlók
C2: Kérjük, válasszon nyelvet. | J2: Please, choose language.
C10: Ha a nyelv kiválasztása nem működik, próbálkozzon | J10: If you have any problem with choosing the language,
C11: a lap biztonsági szintjének csökkentésével. | J11: please try to reduce the security level.
A20: 2

Sheet memo (hidden)
A1: 12 | B1: =+CONCATENATE("2014. ",B4) -> 2014. január-december | C1: =+CONCATENATE("2013. ",C4,) -> 2013. I-XII. hó | D1: =+CONCATENATE(D4," 2013") -> January-December 2013 | E1: =+CONCATENATE("2011",E4,) -> 2011.12.31. | F1: =+IF(H1<>I1,"rossz fájl",A1) ->  | H1: =+#REF! ->  | I1: =+#REF! ->  | N1: =SUM(M2:R4,M13:Q18) -> 
C2: =+CONCATENATE("2014. ",C4,) -> 2014. I-XII. hó | D2: =+CONCATENATE(D4," 2014") -> January-December 2014 | E2: =+CONCATENATE("2012",E4,) -> 2012.12.31. | F2: Kiadások össz | G2: =+Kiadások!D41 -> 13550251.4 | I2: =+Kiadások!E41 -> 16135074.6 | K2: =+Kiadások!F41 -> 3634077.05 | M2: =+IF(A21=0,G2-G15,G2-H15) ->  | N2: =+G2-G20 -> 0 | O2: =+I2-I15 ->  | P2: =+I2-I20 -> 0 | Q2: =+K2-K15 -> 
F3: Bevételek össz | G3: =+Bevételek!D41 -> 2425833.8 | I3: =+Bevételek!E41 -> 2610553.145 | K3: =+Bevételek!F41 -> 633134.5413 | M3: =+G3-G18 ->  | N3: =+G3-G21 -> 0 | O3: =+I3-I18 ->  | P3: =+I3-I21 -> 0 | Q3: =+K3-K18 ->  | R3: =+K3-K21 -> 0
B4: =VLOOKUP($A$1,A5:B16,2) -> január-december | C4: =VLOOKUP($A$1,A5:C16,3) -> I-XII. hó | D4: =+VLOOKUP($A$1,A5:D16,4,FALSE) -> January-December | E4: =VLOOKUP($A$1,A5:E16,5) -> .12.31. | F4: Előirányzat vált. | G4: =+'Előir.vált.'!E41 -> 13550251.4 | I4: =+'Előir.vált.'!F41 -> 16135074.6 | M4: =+G4-G2 -> 0 | O4: =+I4-I2 -> 0
A5: 1 | B5: január | C5: I. hó | D5: January | E5: .01.31. | F5: PMM3
A6: 2 | B6: január-február | C6: I-II. hó | D6: January-February | E6: .02.29. | F6: Kiadások össz | G6: =+#REF! ->  | H6: =+#REF! ->  | I6: =+#REF! ->  | J6: =+#REF! ->  | K6: =+#REF! -> 
A7: 3 | B7: január-március | C7: I-III. hó | D7: January-March | E7: .03.31. | G7: =+#REF!+#REF!+#REF!+#REF!+#REF!+#REF! ->  | H7: =+#REF!+#REF!+#REF!+#REF!+#REF!+#REF! ->  | I7: =+#REF!+#REF!+#REF!+#REF!+#REF!+#REF!+#REF! ->  | J7: =+#REF!+#REF!+#REF!+#REF!+#REF!+#REF! ->  | K7: =VLOOKUP("026",#REF!,9,FALSE)+VLOOKUP("067",#REF!,9,FALSE)+VLOOKUP("069",#REF!,9,FALSE)+VLOOKUP("072",#REF!,9,FALSE)+VLOOKUP("073",#REF!,9,FALSE)+VLOOKUP("075",#REF!,9,FALSE)+VLOOKUP("081",#REF!,9,FALSE)-692 -> 
A8: 4 | B8: január-április | C8: I-IV. hó | D8: January-April | E8: .04.30. | G8: =+G6+G7 ->  | H8: =+H6+H7 ->  | I8: =+I6+I7 ->  | J8: =+J6+J7 ->  | K8: =+K6+K7 -> 
A9: 5 | B9: január-május | C9: I-V. hó | D9: January-May | E9: .05.31. | F9: Bevételek össz | G9: =+#REF! ->  | H9: =+#REF! ->  | I9: =+#REF! ->  | J9: =+#REF! ->  | K9: =+#REF! -> 
A10: 6 | B10: január-június | C10: I-VI. hó | D10: January-June | E10: .06.30. | G10: =+#REF!+#REF!+#REF!+#REF!+#REF!+#REF!+#REF! ->  | H10: =+#REF!+#REF!+#REF!+#REF!+#REF!+#REF!+#REF! ->  | I10: =+#REF!+#REF!+#REF!+#REF!+#REF!+#REF!+#REF! ->  | J10: =+#REF!+#REF!+#REF!+#REF!+#REF!+#REF! ->  | K10: =+VLOOKUP("068",#REF!,9,FALSE)+VLOOKUP("071",#REF!,9,FALSE)+VLOOKUP("074",#REF!,9,FALSE)+VLOOKUP("076",#REF!,9,FALSE)+VLOOKUP("079",#REF!,9,FALSE)+VLOOKUP("080",#REF!,9,FALSE)+VLOOKUP("082",#REF!,9,FALSE) -> 
A11: 7 | B11: január-július | C11: I-VII. hó | D11: January-July | E11: .07.31. | G11: =+G9+G10 ->  | H11: =+H9+H10 ->  | I11: =+I9+I10 ->  | J11: =+J9+J10 ->  | K11: =+K9+K10 -> 
A12: 8 | B12: január-augusztus | C12: I-VIII. hó | D12: January-August | E12: .08.31. | F12: PM03
A13: 9 | B13: január-szeptember | C13: I-IX. hó | D13: January-September | E13: .09.30. | F13: Kiadások össz | G13: =+#REF! ->  | H13: =+#REF! ->  | I13: =+#REF! ->  | J13: =+#REF! ->  | K13: =+#REF! ->  | M13: =+G6-G13 -> 
A14: 10 | B14: január-október | C14: I-X. hó | D14: January-October | E14: .10.31. | G14: =#REF!+#REF!+#REF!+#REF!+#REF!+#REF!+#REF! ->  | H14: =#REF!+#REF!+#REF!+#REF!+#REF!+#REF!+#REF! ->  | I14: =#REF!+#REF!+#REF!+#REF!+#REF!+#REF!+#REF! ->  | J14: =+#REF!+#REF!+#REF!+#REF!+#REF!+#REF! ->  | K14: =+VLOOKUP("026",#REF!,9,FALSE)+VLOOKUP("067",#REF!,9,FALSE)+VLOOKUP("069",#REF!,9,FALSE)+VLOOKUP("072",#REF!,9,FALSE)+VLOOKUP("073",#REF!,9,FALSE)+VLOOKUP("075",#REF!,9,FALSE)+VLOOKUP("081",#REF!,9,FALSE)-692 ->  | O14: =+I7-I14 -> 
A15: 11 | B15: január-november | C15: I-XI. hó | D15: January-November | E15: .11.30. | G15: =+G13+G14 ->  | H15: =+H13+H14 ->  | I15: =+I13+I14 ->  | J15: =+J13+J14 ->  | K15: =+K13+K14 -> 
A16: 12 | B16: január-december | C16: I-XII. hó | D16: January-December | E16: .12.31. | F16: Bevételek össz | G16: =+#REF! ->  | H16: =+#REF! ->  | I16: =+#REF! ->  | J16: =+#REF! ->  | K16: =+#REF! ->  | M16: =+G9-G16 ->  | P16: =+J9-J16 ->  | Q16: =+K9-K16 -> 
G17: =+#REF!+#REF!+#REF!+#REF!+#REF!+#REF! ->  | H17: =+#REF!+#REF!+#REF!+#REF!+#REF!+#REF! ->  | I17: =+#REF!+#REF!+#REF!+#REF!+#REF!+#REF! ->  | J17: =+#REF!+#REF!+#REF!+#REF!+#REF!+#REF! ->  | K17: =+VLOOKUP("068",#REF!,9,FALSE)+VLOOKUP("071",#REF!,9,FALSE)+VLOOKUP("074",#REF!,9,FALSE)+VLOOKUP("076",#REF!,9,FALSE)+VLOOKUP("079",#REF!,9,FALSE)+VLOOKUP("080",#REF!,9,FALSE)+VLOOKUP("082",#REF!,9,FALSE) ->  | P17: =+J10-J17 ->  | Q17: =+K10-K17 -> 
G18: =+G16+G17 ->  | H18: =+H16+H17 ->  | I18: =+I16+I17 ->  | J18: =+J16+J17 ->  | K18: =+K16+K17 ->  | P18: =+J11-J18+R18 ->  | Q18: =+K11-K18+S18 -> 
F19: Részarány
G20: =+Részarány!G27 -> 13550251.4 | I20: =+Részarány!H27 -> 16135074.6 | K20: =+Részarány!I25 -> 3634077.05
A21: 1 | B21: 1 | G21: =+Részarány!G51 -> 2425833.8 | I21: =+Részarány!H51 -> 2610553.145 | K21: =+Részarány!I51 -> 633134.5413
A22: =+IF(A21=0,"e","t") -> t
A23: =+IF(OR($A$22="e",$A$22="E"),A24,B24) -> Teljesítés a törvénnyel módosított előirányzat %-ában
A24: Teljesítés az eredeti előirányzat %-ában | B24: Teljesítés a törvénnyel módosított előirányzat %-ában | C24: =+IF(OR($A$22="e",$A$22="E")," ","törvénnyel") -> törvénnyel | F24: =+IF(OR($A$22="e",$A$22="E")," ","tény össz./ ered.ei") -> tény össz./ ered.ei
A25: =+IF(OR($A$22="e",$A$22="E"),A26,B26) -> Teljesítés / törvénnyel módosított előirányzat, % | C25: =+IF(OR($A$22="e",$A$22="E"),"eredeti","törvénnyel módosított") -> törvénnyel módosított | D25: =+IF(OR($A$22="e",$A$22="E"),"tény/ered.ei.","tény/trv-i.ei.") -> tény/trv-i.ei. | F25: =+IF(OR($A$22="e",$A$22="E"),"tény össz./ ered.ei.","tény össz./ törv.mód.ei") -> tény össz./ törv.mód.ei
A26: Teljesítés / eredeti előirányzat, % | B26: Teljesítés / törvénnyel módosított előirányzat, %
A35: Részarány tábla fejléce
C37: =+C1 -> 2013. I-XII. hó | E37: =+B38 -> 2013. | G37: =+C2 -> 2014. I-XII. hó | J37: =+B38 -> 2013. | K37: =+G37 -> 2014. I-XII. hó | L37: =+G37 -> 2014. I-XII. hó
A38: Megnevezés | B38: 2013. | E38: =+C24 -> törvénnyel | F38: =+B38 -> 2013. | I38: index(%) | J38: index(%) | K38: index(%) | L38: index(%)
B39: módosított | C39: tény | D39: részarány | E39: =+C25 -> törvénnyel módosított | F39: módosított | G39: tény | H39: részarány | I39: tény/bázis | J39: tény./mód.ei. | K39: =+D25 -> tény/trv-i.ei. | L39: tény össz./mód.ei.
B40: előirányzat | D40: (%) | E40: előirányzat | F40: előirányzat | H40: (%) | I40: 9=7/3 | J40: 10=3/2 | K40: 11=7/5 | L40: 12=7/6 | Z40: 1.
A41: 1. | B41: 2. | C41: 3. | D41: 4. | E41: 5. | F41: 6. | G41: 7. | H41: 8. | I41: 9. | J41: 10. | K41: 11. | L41: 12.

Sheet Munka1 (hidden)
C1: =+IF(zászlók!$A$20=1,Munka1!C$3,Munka1!C$2) -> cumulated expenditures | D1: =+IF(zászlók!$A$20=1,Munka1!D$3,Munka1!D$2) -> cumulated revenues | E1: =+IF(zászlók!$A$20=1,Munka1!E$3,Munka1!E$2) -> monthly expenditures | F1: =+IF(zászlók!$A$20=1,Munka1!F$3,Munka1!F$2) -> monthly revenues | G1: =+IF(zászlók!$A$20=1,Munka1!G$3,Munka1!G$2) -> proportional expenditures | H1: =+IF(zászlók!$A$20=1,Munka1!H$3,Munka1!H$2) -> proportional revenues | J1: =+IF(zászlók!$A$20=1,Munka1!J$3,Munka1!J$2) -> expenditures | K1: =+IF(zászlók!$A$20=1,Munka1!K$3,Munka1!K$2) -> revenues | M1: =+memo!A1-1 -> 11
C2: cumulated expenditures | D2: cumulated revenues | E2: monthly expenditures | F2: monthly revenues | G2: proportional expenditures | H2: proportional revenues | J2: expenditures | K2: revenues | M2: =VLOOKUP(memo!$A$1-1,$L$136:$P$229,2,FALSE) -> 1787634.427 | N2: =VLOOKUP(memo!$A$1-1,$L$136:$P$229,3,FALSE) -> 853948.676 | O2: =VLOOKUP(memo!$A$1-1,$L$136:$P$229,4,FALSE) -> 763922.836 | P2: =VLOOKUP(memo!$A$1-1,$L$136:$P$229,5,FALSE) -> 169762.882
C3: Halmozott kiadás | D3: Halmozott bevétel | E3: Tárgyhavi kiadás (tényleges) | F3: Tárgyhavi bevétel (tényleges) | G3: Időarányos kiadás (számított) | H3: Időarányos bevétel (számított) | J3: Kiadás | K3: bevétel
A4: 2003 | B4: Jan | C4: 266862.8 | D4: 43504.6 | E4: =C4 -> 266862.8 | F4: =D4 -> 43504.6 | G4: 224969.9 | H4: 45748.9 | J4: =+G4*12 -> 2699638.8 | K4: 548986.8 | L4: 1
B5: Febr | C5: 471731.653 | D5: 83339.9 | E5: =C5-C4 -> 204868.853 | F5: 39835.3 | G5: =2833476.6/12 -> 236123.05 | H5: =593613.9/12 -> 49467.825 | J5: 2833476.6 | K5: 593613.9 | L5: 2
B6: Márc | C6: 655713.5 | D6: 135640.8 | E6: 183981.847 | F6: 52300.9 | G6: =2873703/12 -> 239475.25 | H6: =603767.3/12 -> 50313.94167 | J6: 2873703 | K6: 603767.3 | L6: 3
B7: Ápr | C7: 887114.0213 | D7: 183977 | E7: 231400.5213 | F7: 48336.2 | G7: =2904079.4/12 -> 242006.6167 | H7: =609824.2/12 -> 50818.68333 | J7: 2904079.4 | K7: 609824.2 | L7: 4
B8: Máj | C8: 1085635.227 | D8: 220633.8 | E8: 198521.2059 | F8: 36656.8 | G8: =2943889.7/12 -> 245324.1417 | H8: =622133.2/12 -> 51844.43333 | J8: 2943889.7 | K8: 622133.2 | L8: 5
B9: Jún | C9: 1326708.35 | D9: 269904.2 | E9: 241073.1224 | F9: 49270.4 | G9: =3029945.8/12 -> 252495.4833 | H9: =631141.3/12 -> 52595.10833 | J9: 3029945.8 | K9: 631141.3 | L9: 6
B10: Júl | C10: 1587393.514 | D10: 326446.3 | E10: 260685.1643 | F10: 56542.1 | G10: =+J10/12 -> 255837.5166 | H10: 53209.37223 | J10: 3070050.199 | K10: 638512.4668 | L10: 7
B11: Aug | C11: 1794255.479 | D11: 365631.4737 | E11: 206861.9653 | F11: 39185.17369 | G11: 258219.3074 | H11: 53918.90797 | J11: 3098631.689 | K11: 647026.8956 | L11: 8
B12: Szept | C12: 2007883.32 | D12: 415105.8684 | E12: =C12-C11 -> 213627.8409 | F12: =D12-D11 -> 49474.39469 | G12: 260128.8552 | H12: 55021.80002 | J12: 3121546.262 | K12: 660261.6003 | L12: 9
B13: Okt | C13: 2250053.483 | D13: 467300.5569 | E13: 235341.6494 | F13: 52194.68852 | G13: 263188.7791 | H13: 56016.30309 | J13: 3158265.349 | K13: 672195.6371 | L13: 10
B14: Nov | C14: 2473541.272 | D14: 517429.4745 | E14: 220873.5649 | F14: 50128.91761 | G14: 265537.4636 | H14: 57491.16517 | J14: 3186449.563 | K14: 689893.982 | L14: 11 | M14: 551139.063 | N14: 150906.582 | O14: 364526.604 | P14: 35705.877
B15: Dec | C15: 2753647.7 | D15: 606787.5899 | E15: 404736.5114 | F15: 89358.1154 | G15: 273413.6381 | H15: 61319.29418 | J15: 3280963.657 | K15: 735831.5302 | L15: 12 | M15: 639131.1572 | N15: 196844.1302 | O15: 424812.66 | P15: 17474.367
A16: 2004 | B16: Jan | C16: 379009.0301 | D16: 45829.54556 | E16: 379009.0301 | F16: 45829.54556 | G16: 267237.179 | H16: 58578.11616 | J16: 3206846.148 | K16: 702937.3939 | L16: 1 | M16: 96412.14795 | N16: 11752.59395 | O16: 84659.554 | P16: 3.637978807e-12
B17: Febr | C17: 586098.474 | D17: 94857.05183 | E17: 207089.4438 | F17: 49027.50627 | G17: 272824.0814 | H17: 61683.75389 | J17: 3273888.977 | K17: 740205.0466 | L17: 2 | M17: 163454.9766 | N17: 49020.24664 | O17: 114354.73 | P17: 80
B18: Márc | C18: 839552.0639 | D18: 166966.8333 | E18: 253453.59 | F18: 72109.78149 | G18: 283965.5652 | H18: 64976.02175 | J18: 3407586.783 | K18: 779712.261 | L18: 3 | M18: 297152.783 | N18: 88527.46097 | O18: 208425.922 | P18: 199.4
B19: Ápr | C19: 1086749.146 | D19: 241522.2441 | E19: 247197.082 | F19: 74555.41082 | G19: 289130.4984 | H19: 66794.50974 | J19: 3469565.981 | K19: 801534.1169 | L19: 4 | M19: 359131.9809 | N19: 110349.3169 | O19: 246483.264 | P19: 2299.4
B20: Máj | C20: 1326203.387 | D20: 318160.7861 | E20: 239454.2414 | F20: 76638.54199 | G20: 291932.5692 | H20: 67548.39046 | J20: 3503190.83 | K20: 810580.6855 | L20: 5 | M20: 392756.8305 | N20: 119395.8855 | O20: 266686.7 | P20: 6674.245
B21: Jún | C21: 1582979.84 | D21: 370383.4974 | E21: 256776.4525 | F21: 52222.71131 | G21: 300717.2675 | H21: 69245.27083 | J21: 3608607.21 | K21: 830943.25 | L21: 6 | M21: 498173.21 | N21: 139758.45 | O21: 350449.761 | P21: 7964.999
A22: 7 | B22: Júl | C22: 1829812.569 | D22: 424759.8457 | E22: 246832.7289 | F22: 54376.34822 | G22: 301926.3679 | H22: 70268.30715 | J22: 3623116.415 | K22: 843219.6858 | L22: 7 | M22: 512682.4148 | N22: 152034.8858 | O22: 350934.52 | P22: 9713.009
A23: 8 | B23: Aug | C23: 2033056.563 | D23: 481063.4135 | E23: 203243.9946 | F23: 56303.56787 | G23: 304290.4055 | H23: 70876.49613 | J23: 3651484.866 | K23: 850517.9535 | L23: 8 | M23: 541050.8655 | N23: 159333.1535 | O23: 366726.107 | P23: 14991.605
A24: 9 | B24: Szept | C24: 2254925.337 | D24: 535986.5933 | E24: 221868.774 | F24: 54923.17976 | G24: 308219.3742 | H24: 73290.09975 | J24: 3698632.49 | K24: 879481.197 | L24: 9 | M24: 588198.49 | N24: 188296.397 | O24: 381173.688 | P24: 18728.405
A25: 10 | B25: Okt | C25: 2504652.347 | D25: 594937.9419 | E25: 249727.0097 | F25: 58951.34862 | G25: 310337.0661 | H25: 74293.13835 | J25: 3724044.793 | K25: 891517.6602 | L25: 10 | M25: 613610.7932 | N25: 200332.8602 | O25: 392620.541 | P25: 20657.392
A26: 11 | B26: Nov | C26: 2762127.633 | D26: 656425.4033 | E26: 257475.2864 | F26: 61487.46136 | G26: 316742.337 | H26: 76594.78822 | J26: 3800908.044 | K26: 919137.4586 | L26: 11 | M26: 685474.0436 | N26: 227952.6586 | O26: 427742.618 | P26: 29778.767
A27: 12 | B27: Dec | C27: 3094065.002 | D27: 767073.7327 | E27: 331937.3687 | F27: 110648.3294 | G27: 315540.7438 | H27: 80562.6391 | J27: 3786488.926 | K27: 966751.6692 | L27: 12 | M27: 670254.9262 | N27: 275566.8692 | O27: 463621.661 | P27: -68933.604
A28: 2005 | B28: Jan | C28: 391156.4075 | D28: 81543.62103 | E28: 391156.4075 | F28: 81543.62103 | G28: 262879.4801 | H28: 64338.62595 | J28: 3154553.761 | K28: 772063.5114 | L28: 1 | M28: 176222.1614 | N28: 60433.41136 | O28: 115788.75 | P28: -4.547473509e-12
A29: 2 | B29: Febr | C29: 660544.2171 | D29: 163236.2587 | E29: 269387.8096 | F29: 81692.63766 | G29: 280408.0054 | H29: 67453.58795 | J29: 3364896.065 | K29: 809443.0554 | L29: 2 | M29: 386564.4654 | N29: 97812.9554 | O29: 287406.51 | P29: 1345
A30: 3 | B30: Márc | C30: 945726.517 | D30: 238460.8886 | E30: 285182.2999 | F30: 75224.62988 | G30: 293416.5966 | H30: 72005.09386 | J30: 3520999.159 | K30: 864061.1264 | L30: 3 | M30: 542667.5594 | N30: 152431.0264 | O30: 377800.747 | P30: 12435.786
A31: 4 | B31: Ápr | C31: 1218500.149 | D31: 307406.773 | E31: 272773.6319 | F31: 68945.88442 | G31: 297837.1511 | H31: 73558.3857 | J31: 3574045.813 | K31: 882700.6284 | L31: 4 | M31: 595714.2134 | N31: 171070.5284 | O31: 398914.757 | P31: 25728.928
A32: 5 | B32: Máj | C32: 1469520.707 | D32: 367550.821 | E32: 251020.5577 | F32: 60144.048 | G32: 301193.0736 | H32: 75127.87803 | J32: 3614316.883 | K32: 901534.5363 | L32: 5 | M32: 635985.2833 | N32: 189904.4363 | O32: 412607.554 | P32: 33473.293
A33: 6 | B33: Jún | C33: 1749505.892 | D33: 440421.3312 | E33: 279985.185 | F33: 72870.5102 | G33: 308802.7178 | H33: 76844.29322 | J33: 3705632.614 | K33: 922131.5187 | L33: 6 | M33: 728301.0137 | N33: 210501.4187 | O33: 484086.302 | P33: 33713.293
A34: 7 | B34: Júl | C34: 1996593.697 | D34: 506394.3561 | E34: 247087.8053 | F34: 65973.02495 | G34: 310469.1424 | H34: 77581.03251 | J34: 3725629.709 | K34: 930972.3902 | L34: 7 | M34: 748298.1092 | N34: 219342.2902 | O34: 492463.626 | P34: 36492.193
A35: 8 | B35: Aug | C35: 2251400.492 | D35: 618995.026 | E35: 254806.7949 | F35: 112600.6699 | G35: 312571.6228 | H35: 79082.83707 | J35: 3750859.474 | K35: 948994.0448 | L35: 8 | M35: 773527.8738 | N35: 237363.9448 | O35: 494653.109 | P35: 41510.82
A36: 9 | B36: Szept | C36: 2452762.698 | D36: 687035.2521 | E36: 201362.2066 | F36: 68040.22611 | G36: 315110.0767 | H36: 81564.8848 | J36: 3781320.921 | K36: 978778.6176 | L36: 9 | M36: 803989.3206 | N36: 267148.5176 | O36: 495059.925 | P36: 41780.878
A37: 10 | B37: Okt | C37: 2699415.43 | D37: 782510.1594 | E37: 246652.7313 | F37: 95474.9073 | G37: 316559.9511 | H37: 82881.96026 | J37: 3798719.413 | K37: 994583.5231 | L37: 10 | M37: 821387.8131 | N37: 282953.4231 | O37: 496227.411 | P37: 42206.979
A38: 11 | B38: Nov | C38: 2942586.166 | D38: 866827.9284 | E38: 243170.7367 | F38: 84317.769 | G38: 320675.1162 | H38: 86458.55785 | J38: 3848101.394 | K38: 1037502.694 | L38: 11 | M38: 869769.7942 | N38: 325872.5942 | O38: 497480.641 | P38: 46416.559
A39: 12 | B39: Dec | C39: 3334984.265 | D39: 1015039.017 | E39: 392398.0982 | F39: 148211.0884 | G39: 329688.386 | H39: 93784.91347 | J39: 3956260.632 | K39: 1125418.962 | L39: 12 | M39: 976929.0317 | N39: 413788.8617 | O39: 513883.038 | P39: 49257.132
A40: 2006 | B40: Jan | C40: 421032.1446 | D40: 83621.83726 | E40: 421032.1446 | F40: 83621.83726 | G40: 287488.2966 | H40: =+IF(K40>0,K40/12,"") -> 80798.57402 | J40: 3449859.559 | K40: 969582.8883 | L40: 1 | M40: 265653.0593 | N40: 35570.88826 | O40: 230046.171 | P40: 36
A41: 2 | B41: Febr | C41: 770711.5169 | D41: 197070.7837 | E41: 349679.3723 | F41: 113448.9464 | G41: 300313.0143 | H41: 87133.01139 | J41: 3603756.172 | K41: 1045596.137 | L41: 2 | M41: 419549.6716 | N41: 111584.1366 | O41: 302698.335 | P41: 5267.2
A42: 3 | B42: Márc | C42: 1090599.15 | D42: 297245.3927 | E42: 319887.633 | F42: 100174.609 | G42: 312166.4055 | H42: 89789.49801 | J42: 3745996.866 | K42: 1077473.976 | L42: 3 | M42: 561790.3661 | N42: 143461.9761 | O42: 404762.081 | P42: 13566.309
A43: 4 | B43: Ápr | C43: 1383411.286 | D43: 395197.2626 | E43: 292812.1364 | F43: 97951.86992 | G43: 316318.6497 | H43: 91573.81252 | J43: 3795823.796 | K43: 1098885.75 | L43: 4 | M43: 611617.2962 | N43: 164873.7502 | O43: 428503.701 | P43: 18239.845
A44: 5 | B44: Máj | C44: 1701469.16 | D44: 518638.0708 | E44: 318057.8741 | F44: 123440.8082 | G44: 324407.4792 | H44: 96547.497 | J44: 3892889.751 | K44: 1158569.964 | L44: 5 | M44: 708683.251 | N44: 224557.964 | O44: 465407.338 | P44: 18717.949
A45: 6 | B45: Jún | C45: 2014704.015 | D45: 620414.1323 | E45: 313234.8548 | F45: 101776.0615 | G45: 330962.2037 | H45: 99832.21136 | J45: 3971546.444 | K45: 1197986.536 | L45: 6 | M45: 787339.9443 | N45: 263974.5363 | O45: 502916.464 | P45: 20448.944
A46: 7 | B46: Júl | C46: 2272820.34 | D46: 700952.0465 | E46: 258116.3253 | F46: 80537.91422 | G46: =+IF(J46>0,J46/12,"") -> 334090.711 | H46: =+IF(K46>0,K46/12,"") -> 101505.8491 | J46: 4009088.533 | K46: 1218070.19 | L46: 7 | M46: 824882.0325 | N46: 284058.1895 | O46: 505055.799 | P46: 35768.044
A47: 8 | B47: Aug | C47: 2557578.273 | D47: 796662.7959 | E47: 284757.9327 | F47: 95710.74938 | G47: 336796.8777 | H47: 103158.9381 | J47: 4041562.532 | K47: 1237907.257 | L47: 8 | M47: 857356.0321 | N47: 303895.2571 | O47: 519131.477 | P47: 34329.298
A48: 9 | B48: Szept | C48: 2808797.032 | D48: 908903.7654 | E48: 251218.7585 | F48: 112240.9695 | G48: 339120.0674 | H48: 104884.0425 | J48: 4069440.808 | K48: 1258608.51 | L48: 9 | M48: 885234.3083 | N48: 324596.5103 | O48: 523738.5 | P48: 36899.298
A49: 10 | B49: Okt | C49: 3088970.97 | D49: 1017119.515 | E49: 280173.9378 | F49: 108215.7496 | G49: 342464.0567 | H49: 107356.7026 | J49: 4109568.68 | K49: 1288280.431 | L49: 10 | M49: 925362.1805 | N49: 354268.4315 | O49: 527207.716 | P49: 43886.033
A50: 11 | B50: Nov | C50: 3377192.788 | D50: 1121716.81 | E50: 288221.8184 | F50: 104597.2946 | G50: 346776.0886 | H50: 109775.9647 | J50: 4161313.063 | K50: 1317311.577 | L50: 11 | M50: 977106.5629 | N50: 383299.5769 | O50: 531524.506 | P50: 62282.48
A51: 12 | B51: Dec | C51: 3903034.245 | D51: 1276792.473 | E51: 525841.4573 | F51: 155075.6638 | G51: 361802.6753 | H51: 116521.5944 | J51: 4341632.103 | K51: 1398259.133 | L51: 12 | M51: 1060319.303 | N51: 464247.1331 | O51: 543323.969 | P51: 52748.201
A52: 2007 | B52: Jan | C52: 485477.6435 | D52: 88201.93356 | E52: 485477.6435 | F52: 88201.93356 | G52: 332158.3992 | H52: 94801.39502 | J52: 3985900.79 | K52: 1137616.74 | L52: 1 | M52: 211831.6902 | N52: 53008.04022 | O52: 158823.65 | P52: -1.455191523e-11
A53: 2 | B53: Febr | C53: 792737.2489 | D53: 170754.1751 | E53: 307259.6054 | F53: 82552.2415 | G53: 343173.7275 | H53: 98976.52333 | J53: 4118084.73 | K53: 1187718.28 | L53: 2 | M53: 344015.6299 | N53: 103109.5799 | O53: 239153.85 | P53: 1752.2
A54: 3 | B54: Márc | C54: 1118933.09 | D54: 269526.6083 | E54: 326195.8408 | F54: 98772.43327 | G54: 351298.0626 | H54: 102788.2222 | J54: 4215576.751 | K54: 1233458.666 | L54: 3 | M54: 441507.6509 | N54: 148849.9659 | O54: 285880.085 | P54: 6777.6
A55: 4 | B55: Ápr | C55: 1427205.97 | D55: 373701.8668 | E55: 308272.8806 | F55: 104175.2585 | G55: 356126.6786 | H55: 104420.4878 | J55: 4273520.143 | K55: 1253045.854 | L55: 4 | M55: 499451.0428 | N55: 168437.1538 | O55: 310001.789 | P55: 21012.1
A56: 5 | B56: Máj | C56: 1706136.08 | D56: 458534.2117 | E56: 278930.1098 | F56: 84832.34487 | G56: 358202.9838 | H56: 103737.1007 | J56: 4298435.806 | K56: 1244845.209 | L56: 5 | M56: 524366.7059 | N56: 160236.5089 | O56: 332758.544 | P56: 31371.653
A57: 6 | B57: Jún | C57: 2023238.227 | D57: 554680.4117 | E57: 317102.1466 | F57: 96146.19996 | G57: 365881.6783 | H57: 104709.1254 | J57: 4390580.14 | K57: 1256509.505 | L57: 6 | M57: 616511.0396 | N57: 171900.8046 | O57: 391398.145 | P57: 53212.09
A58: 7 | B58: Júl | C58: 2330877.198 | D58: 661298.5862 | E58: 307638.9716 | F58: 106618.1746 | G58: 370872.0273 | H58: 106172.6879 | J58: 4450464.328 | K58: 1274072.255 | L58: 7 | M58: 676244.3281 | N58: 189463.5551 | O58: 396228.313 | P58: 90552.46
A59: 8 | B59: Aug | C59: 2619417.144 | D59: 760114.0607 | E59: 288539.9462 | F59: 98815.47447 | G59: 373257.667 | H59: 107717.5315 | J59: 4479092.005 | K59: 1292610.378 | L59: 8 | M59: 704872.0045 | N59: 208001.6775 | O59: 399133.145 | P59: 97737.182
A60: 9 | B60: Szept | C60: 2903416.371 | D60: 845912.9963 | E60: 283999.2265 | F60: 85798.93559 | G60: 376304.1027 | H60: 109354.0567 | J60: 4515649.232 | K60: 1312248.681 | L60: 9 | M60: 741429.2319 | N60: 227639.9809 | O60: 406195.291 | P60: 107593.96
A61: 10 | B61: Okt | C61: 3253121.532 | D61: 988470.7734 | E61: 349705.1607 | F61: 142557.7771 | G61: 379714.378 | H61: 111809.017 | J61: 4556572.536 | K61: 1341708.204 | L61: 10 | M61: 782352.5362 | N61: 257099.5037 | O61: 406995.1924 | P61: 118257.84
A62: 11 | B62: Nov | C62: 3541808.047 | D62: 1084758.254 | E62: 288686.5151 | F62: 96287.481 | G62: 384580.9047 | H62: 115583.9639 | J62: 4614970.856 | K62: 1387007.567 | L62: 11 | M62: 840750.856 | N62: 302398.8666 | O62: 413059.6694 | P62: 125292.32
A63: 12 | B63: Dec | C63: 4228121.49 | D63: 1268920.289 | E63: 686313.4432 | F63: 184162.0348 | G63: 400359.3764 | H63: 127406.0806 | J63: 4804312.517 | K63: 1528872.967 | L63: 12 | M63: 1025032.517 | N63: 444264.2671 | O63: 419797.5354 | P63: 160970.714
A64: 2008 | B64: Jan | C64: 339483.2128 | D64: 96590.48532 | E64: 339483.2128 | F64: 96590.48532 | G64: 336105.3665 | H64: 101613.4099 | J64: 4033264.398 | K64: 1219360.918 | L64: 1 | M64: 156738.9984 | N64: 11847.91836 | O64: 144132.992 | P64: 758.088
A65: 2 | B65: Febr | C65: 608328.6411 | D65: 181382.6754 | E65: 268845.4283 | F65: 84792.19003 | G65: 348445.7382 | H65: 105062.1572 | J65: 4181348.858 | K65: 1260745.886 | L65: 2 | M65: 304823.4581 | N65: 53232.88615 | O65: 227648.727 | P65: 23941.845
A66: 3 | B66: Márc | C66: 893370.2215 | D66: 270672.2231 | E66: 285041.5804 | F66: 89289.54774 | G66: 351616.5082 | H66: 105673.585 | J66: 4219398.099 | K66: 1268083.02 | L66: 3 | M66: 342872.6987 | N66: 60570.01975 | O66: 248660.726 | P66: 33641.953
A67: 4 | B67: Ápr | C67: 1225600.836 | D67: 378647.9247 | E67: 332230.6144 | F67: 107975.7016 | G67: 355251.5267 | H67: 106698.3895 | J67: 4263018.32 | K67: 1280380.674 | L67: 4 | M67: 386492.9203 | N67: 72867.67426 | O67: 279096.179 | P67: 34529.067
A68: 5 | B68: Máj | C68: 1486292.801 | D68: 451306.9694 | E68: 260691.9646 | F68: 72659.04472 | G68: 362991.0864 | H68: 108530.7556 | J68: 4355893.037 | K68: 1302369.067 | L68: 5 | M68: 479367.6369 | N68: 94856.06687 | O68: 315043.651 | P68: 69467.919
A69: 6 | B69: Jún | C69: 1831481.039 | D69: 526128.9623 | E69: 345188.2388 | F69: 74821.99292 | G69: 371291.8251 | H69: 110941.3546 | J69: 4455501.901 | K69: 1331296.256 | L69: 6 | M69: 578976.5007 | N69: 123783.2557 | O69: 370846.599 | P69: 84346.646
A70: 7 | B70: Júl | C70: 2132526.027 | D70: 606438.8782 | E70: 301044.9872 | F70: 80309.91586 | G70: 372656.4331 | H70: 111745.1594 | J70: 4471877.197 | K70: 1340941.912 | L70: 7 | M70: 595351.7972 | N70: 133428.9122 | O70: 374010.422 | P70: 87912.463
A71: 8 | B71: Aug | C71: 2396442.502 | D71: 696472.9348 | E71: 263916.4755 | F71: 90034.05663 | G71: 375381.283 | H71: 112748.0173 | J71: 4504575.395 | K71: 1352976.207 | L71: 8 | M71: 628049.9955 | N71: 145463.2075 | O71: 376877.307 | P71: 105709.481
A72: 9 | B72: Szept | C72: 2676830.221 | D72: 785960.15 | E72: 280387.7192 | F72: 89487.21511 | G72: 379239.565 | H72: 116166.9341 | J72: 4550874.779 | K72: 1394003.209 | L72: 9 | M72: 674349.3795 | N72: 186490.2095 | O72: 378805.724 | P72: 109053.446
A73: 10 | B73: Okt | C73: 3009605.377 | D73: 886454.9652 | E73: 332775.1554 | F73: 100494.8153 | G73: 382750.6597 | H73: 118245.1839 | J73: 4593007.916 | K73: 1418942.207 | L73: 10 | M73: 716482.5162 | N73: 211429.2072 | O73: 393801.172 | P73: 111252.137
A74: 11 | B74: Nov | C74: 3326123.534 | D74: 970775.6997 | E74: 316518.1573 | F74: 84320.73453 | G74: 386485.2175 | H74: 121259.6308 | J74: 4637822.61 | K74: 1455115.57 | L74: 11 | M74: 761297.21 | N74: 247602.57 | O74: 393936.611 | P74: 119758.029
A75: 12 | B75: Dec | C75: 3998658.848 | D75: 1262744.005 | E75: 672535.3138 | F75: 291968.3054 | G75: 401538.0172 | H75: 133430.6779 | J75: 4818456.206 | K75: 1601168.135 | L75: 12 | M75: 941784.7061 | N75: 393655.1351 | O75: 399704.836 | P75: 148424.735
A76: 2009 | B76: Jan | C76: 294813.6971 | D76: 75805.15307 | E76: 294813.6971 | F76: 75805.15307 | G76: 334156.0367 | H76: 118077.5046 | J76: 4009872.44 | K76: 1416930.055 | L76: 1 | M76: 328528.0402 | N76: 78937.55515 | O76: 219913.172 | P76: 29677.313
A77: 2 | B77: Febr | C77: 652509.2689 | D77: 230414.608 | E77: 357695.5718 | F77: 154609.455 | G77: 344643.868 | H77: 120650.6891 | J77: 4135726.416 | K77: 1447808.269 | L77: 2 | M77: 454382.0158 | N77: 109815.7688 | O77: 314697.471 | P77: 29868.776
A78: 3 | B78: Márc | C78: 964315.4014 | D78: 332897.3038 | E78: 311806.1325 | F78: 102482.6957 | G78: 355219.1549 | H78: 124347.946 | J78: 4262629.859 | K78: 1492175.352 | L78: 3 | M78: 581285.4588 | N78: 154182.8518 | O78: 389312.131 | P78: 37790.476
A79: 4 | B79: Ápr | C79: 1300080.639 | D79: 463454.7955 | E79: 335765.2373 | F79: 130557.4918 | G79: 360460.0341 | H79: 126946.9658 | J79: 4325520.409 | K79: 1523363.59 | L79: 4 | M79: 644176.0087 | N79: 185371.0897 | O79: 416553.262 | P79: 42251.657
A80: 5 | B80: Máj | C80: 1619604.125 | D80: 571771.1363 | E80: 319523.4865 | F80: 108316.3408 | G80: 365282.9685 | H80: 128392.1479 | J80: 4383395.622 | K80: 1540705.775 | L80: 5 | M80: 702051.2221 | N80: 202713.2751 | O80: 452836.206 | P80: 46501.741
A81: 6 | B81: Jún | C81: 1971050.694 | D81: 743624.638 | E81: 351446.5687 | F81: 171853.5017 | G81: 371334.8404 | H81: 131129.116 | J81: 4456018.085 | K81: 1573549.392 | L81: 6 | M81: 774673.6853 | N81: 235556.8923 | O81: 484187.3 | P81: 54929.493
A82: 7 | B82: Júl | C82: 2339342.146 | D82: 860725.413 | E82: 368291.4524 | F82: 117100.775 | G82: 377579.8013 | H82: 133753.0648 | J82: 4530957.615 | K82: 1605036.777 | L82: 7 | M82: 849613.2152 | N82: 267044.2772 | O82: 522961.382 | P82: 59607.556
A83: 8 | B83: Aug | C83: 2619627.697 | D83: 982020.1255 | E83: 280285.5509 | F83: 121294.7125 | G83: 382406.8162 | H83: 137866.8483 | J83: 4588881.795 | K83: 1654402.18 | L83: 8 | M83: 907537.3945 | N83: 316409.6795 | O83: 526174.982 | P83: 64952.733
A84: 9 | B84: Szept | C84: 2915097.774 | D84: 1103351.079 | E84: 295470.0773 | F84: 121330.9537 | G84: 386544.4674 | H84: 141624.2379 | J84: 4638533.609 | K84: 1699490.855 | L84: 9 | M84: 957189.2086 | N84: 361498.3546 | O84: 529296.274 | P84: 66394.58
A85: 10 | B85: Okt | C85: 3235445.415 | D85: 1254657.486 | E85: 320347.6405 | F85: 151306.4069 | G85: 390116.6051 | H85: 144637.6607 | J85: 4681399.262 | K85: 1735651.929 | L85: 10 | M85: 1000054.862 | N85: 397659.4285 | O85: 533976.314 | P85: 68419.119
A86: 11 | B86: Nov | C86: 3562458.916 | D86: 1401564.689 | E86: 327013.501 | F86: 146907.203 | G86: 397212.1739 | H86: 150851.1218 | J86: 4766546.087 | K86: 1810213.461 | L86: 11 | M86: 1085201.687 | N86: 472220.961 | O86: 540158.629 | P86: 72822.097
A87: 12 | B87: Dec | C87: 4039370.921 | D87: 1621651.812 | E87: 476912.0047 | F87: 220087.1227 | G87: 403107.1686 | H87: 162754.1486 | J87: 4837286.023 | K87: 1953049.783 | L87: 12 | M87: 1155801.323 | N87: 615057.2832 | O87: 549991.234 | P87: -9247.194
A88: 2010 | B88: Jan | C88: 319739.0362 | D88: 133404.2574 | E88: 319739.0362 | F88: 133404.2574 | G88: 319263.0692 | H88: 115459.6967 | J88: 3831156.83 | K88: 1385516.36 | L88: 1 | M88: 347429.9303 | N88: 88712.26031 | O88: 245717.67 | P88: 13000
A89: 2 | B89: Febr | C89: 669966.9861 | D89: 281054.9414 | E89: 350227.9499 | F89: 147650.684 | G89: 332379.2892 | H89: 116402.0249 | J89: 3988551.47 | K89: 1396824.298 | L89: 2 | M89: 504824.5705 | N89: 100020.1985 | O89: 380085.831 | P89: 24718.541
A90: 3 | B90: Márc | C90: 1021893.914 | D90: 421832.523 | E90: 351926.9281 | F90: 140777.5816 | G90: 342232.9105 | H90: 119008.0534 | J90: 4106794.926 | K90: 1428096.641 | L90: 3 | M90: 623068.0258 | N90: 131292.5408 | O90: 450527.013 | P90: 41248.472
A91: 4 | B91: Ápr | C91: 1421361.806 | D91: 581418.0992 | E91: 399467.8917 | F91: 159585.5761 | G91: 348384.0819 | H91: 121261.8135 | J91: 4180608.983 | K91: 1455141.762 | L91: 4 | M91: 696882.0827 | N91: 158337.6617 | O91: 492771.949 | P91: 45772.472
A92: 5 | B92: Máj | C92: 1761859.82 | D92: 724758.3377 | E92: 340498.014 | F92: 143340.2385 | G92: 354297.7878 | H92: 124310.0688 | J92: 4251573.453 | K92: 1491720.826 | L92: 5 | M92: 767846.5531 | N92: 194916.7261 | O92: 522969.522 | P92: 49960.305
A93: 6 | B93: Jún | C93: 2145070.984 | D93: 878956.2736 | E93: 383211.1638 | F93: 154197.9359 | G93: 362578.5807 | H93: 129073.0298 | J93: 4350942.969 | K93: 1548876.358 | L93: 6 | M93: 867216.0686 | N93: 252072.2576 | O93: 566405.88 | P93: 48737.931
A94: 7 | B94: Júl | C94: 2459895.727 | D94: 1025276.606 | E94: 314824.743 | F94: 146320.3322 | G94: 366900.215 | H94: 132125.8741 | J94: 4402802.58 | K94: 1585510.489 | L94: 7 | M94: 919075.6796 | N94: 288706.3886 | O94: 569761.77 | P94: 60607.521
A95: 8 | B95: Aug | C95: 2752671.999 | D95: 1140201.971 | E95: 292776.2721 | F95: 114925.3654 | G95: 369773.6888 | H95: 134747.4923 | J95: 4437284.265 | K95: 1616969.907 | L95: 8 | M95: 953557.365 | N95: 320165.807 | O95: 572055.488 | P95: 61336.07
A96: 9 | B96: Szept | C96: 3062671.878 | D96: 1278929.332 | E96: 309999.8793 | F96: 138727.3605 | G96: 376052.2604 | H96: 140003.8045 | J96: 4512627.125 | K96: 1680045.654 | L96: 9 | M96: 1028900.225 | N96: 383241.5537 | O96: 581533.1 | P96: 64125.571
A97: 10 | B97: Okt | C97: 3377287.371 | D97: 1423844.255 | E97: 314615.4932 | F97: 144914.9234 | G97: 383122.2758 | H97: 146324.8887 | J97: 4597467.309 | K97: 1755898.664 | L97: 10 | M97: 1113740.409 | N97: 459094.5644 | O97: 587356.274 | P97: 67289.571
A98: 11 | B98: Nov | C98: 3766335.68 | D98: 1594408.475 | E98: 389048.3085 | F98: 170564.2203 | G98: 393887.5661 | H98: 153471.1939 | J98: 4726650.793 | K98: 1841654.327 | L98: 11 | M98: 1242923.893 | N98: 544850.2274 | O98: 618137.943 | P98: 79935.723
A99: 12 | B99: Dec | C99: 4204721.852 | D99: 1878159.717 | E99: 438386.1721 | F99: 283751.2417 | G99: 412343.3629 | H99: 170585.9243 | J99: 4948120.355 | K99: 2047031.091 | L99: 12 | M99: 1464393.455 | N99: 750226.9912 | O99: 626088.119 | P99: 88078.345
A100: 2011 | B100: Jan | C100: 434243.209 | D100: 130293.2324 | E100: 434243.209 | F100: 130293.2324 | G100: 398537.9497 | H100: 159651.4214 | J100: 4782455.396 | K100: 1915817.057 | L100: 1 | M100: 536220.8964 | N100: 121155.7574 | O100: 415065.139 | P100: 6.821210263e-11
A101: 2 | B101: Febr | C101: 864936.5057 | D101: 350803.6013 | E101: 430693.2967 | F101: 220510.3689 | G101: 402368.8851 | H101: 162942.5576 | J101: 4828426.621 | K101: 1955310.691 | L101: 2 | M101: 582192.121 | N101: 160649.391 | O101: 421542.73 | P101: 6.457412383e-11
A102: 3 | B102: Márc | C102: 1277608.418 | D102: 594006.2283 | E102: 412671.9123 | F102: 243202.627 | G102: 409950.7273 | H102: 165068.5763 | J102: 4919408.727 | K102: 1980822.915 | L102: 3 | M102: 673174.2271 | N102: 186161.6151 | O102: 487012.612 | P102: -6.548361853e-11
A103: 4 | B103: Ápr | C103: 1606865.97 | D103: 719016.4328 | E103: 329257.552 | F103: 125010.2045 | G103: 415700.6049 | H103: 166744.8841 | J103: 4988407.258 | K103: 2000938.609 | L103: 4 | M103: 742172.7583 | N103: 206277.3093 | O103: 528284.249 | P103: 7611.2
A104: 5 | B104: Máj | C104: 1946748.318 | D104: 845538.1461 | E104: 339882.3483 | F104: 126521.7133 | G104: 423120.6275 | H104: 173371.6409 | J104: 5077447.53 | K104: 2080459.69 | L104: 5 | M104: 831213.0303 | N104: 285798.3903 | O104: 529450.193 | P104: 15964.447
A105: 6 | B105: Jún | C105: 2333939.762 | D105: 983221.0849 | E105: 387191.4441 | F105: 137682.9388 | G105: 431623.5388 | H105: 176554.6673 | J105: 5179482.465 | K105: 2118656.008 | L105: 6 | M105: 933247.9651 | N105: 323994.7081 | O105: 574605.505 | P105: 34647.752
A106: 7 | B106: Júl | C106: 2685708.027 | D106: 1100491.889 | E106: 351768.2651 | F106: 117270.804 | G106: 436047.7129 | H106: 178888.2785 | J106: 5232572.555 | K106: 2146659.342 | L106: 7 | M106: 986338.0546 | N106: 351998.0416 | O106: 582883.947 | P106: 51456.066
A107: 8 | B107: Aug | C107: 3029858.414 | D107: 1298697.569 | E107: 344150.3869 | F107: 198205.68 | G107: 425377.0876 | H107: 180921.0035 | J107: 5104525.052 | K107: 2171052.042 | L107: 8 | M107: 1022008.452 | N107: 376390.7416 | O107: 592791.505 | P107: 52826.205
A108: 9 | B108: Szept | C108: 3388468.295 | D108: 1534369.935 | E108: 358609.8807 | F108: 235672.3656 | G108: 430764.0674 | H108: 185160.1133 | J108: 5169168.809 | K108: 2221921.36 | L108: 9 | M108: 1086652.209 | N108: 427260.0597 | O108: 601753.355 | P108: 57638.794
A109: 10 | B109: Okt | C109: 3753656.631 | D109: 1717499.949 | E109: 365188.3356 | F109: 183130.0143 | G109: 437557.5186 | H109: 191653.6937 | J109: 5250690.224 | K109: 2299844.325 | L109: 10 | M109: 1168173.624 | N109: 505183.0246 | O109: 604180.891 | P109: 58809.708
A110: 11 | B110: Nov | C110: 4064817.77 | D110: 1888638.463 | E110: 311161.1399 | F110: 171138.5146 | G110: 443088.969 | H110: 195837.6253 | J110: 5317067.628 | K110: 2350051.503 | L110: 11 | M110: 1234551.028 | N110: 555390.2031 | O110: 605420.428 | P110: 73740.397
A111: 12 | B111: Dec | C111: 4720350.039 | D111: 2157753.499 | E111: 655532.2689 | F111: 269115.0352 | G111: 471837.9788 | H111: 213962.1381 | J111: 5662055.746 | K111: 2567545.657 | L111: 12 | M111: 1450662.814 | N111: 772884.3569 | O111: 612294.768 | P111: 65483.689
A112: 2012 | B112: Jan | C112: 332514.7644 | D112: 196234.2403 | E112: 332514.7644 | F112: 196234.2403 | G112: 434175.6468 | H112: 208381.3459 | J112: 5210107.761 | K112: 2500576.151 | L112: 1 | M112: 327105.561 | N112: 4674.751 | O112: 322014.71 | P112: 416.1
A113: 2 | B113: Febr | C113: 748860.5103 | D113: 378498.3506 | E113: 416345.7459 | F113: 182264.1102 | G113: 444959.349 | H113: 213826.7715 | J113: 5339512.188 | K113: 2565921.258 | L113: 2 | M113: 456509.988 | N113: 70019.858 | O113: 380827.13 | P113: 5663
A114: 3 | B114: Márc | C114: 1123460.072 | D114: 559682.0053 | E114: 374599.5618 | F114: 181183.6548 | G114: 452275.3107 | H114: 215518.6528 | J114: 5427303.728 | K114: 2586223.833 | L114: 3 | M114: 544301.528 | N114: 90322.433 | O114: 448407.495 | P114: 5571.6
A115: 4 | B115: Ápr | C115: 1487746.519 | D115: 737661.3355 | E115: 364286.4468 | F115: 177979.3301 | G115: 483026.7213 | H115: 241927.2277 | J115: 5796320.655 | K115: 2903126.733 | L115: 4 | M115: 913275.355 | N115: 407225.333 | O115: 488681.722 | P115: 17368.3
A116: 5 | B116: Máj | C116: 1910063.884 | D116: 913764.0023 | E116: 422317.3653 | F116: 176102.6669 | G116: 470493.1398 | H116: 223343.8086 | J116: 5645917.677 | K116: 2680125.703 | L116: 5 | M116: 762872.377 | N116: 184224.303 | O116: 515010.71 | P116: 63637.364
A117: 6 | B117: Jún | C117: 2356805.139 | D117: 1097837.323 | E117: 446741.2549 | F117: 184073.3205 | G117: 483708.873 | H117: 230217.0683 | J117: 5804506.476 | K117: 2762604.82 | L117: 6 | M117: 921461.176 | N117: 266703.42 | O117: 575954.834 | P117: 78802.922
A118: 7 | B118: Júl | C118: 2739912.514 | D118: 1305193.048 | E118: 383107.3753 | F118: 207355.7251 | G118: 488973.9361 | H118: 231726.6642 | J118: 5867687.233 | K118: 2780719.97 | L118: 7 | M118: 953468.833 | N118: 284818.57 | O118: 579655.541 | P118: 88994.722
A119: 8 | B119: Aug | C119: 3140211.004 | D119: 1506022.083 | E119: 400298.4899 | F119: 200829.0352 | G119: 498430.1345 | H119: 234234.3946 | J119: 5981161.614 | K119: 2810812.735 | L119: 8 | M119: 1001943.214 | N119: 314911.335 | O119: 587170.915 | P119: 99860.964
A120: 9 | B120: Szept | C120: 3516612.323 | D120: 1690889.325 | E120: 376401.3191 | F120: 184867.2417 | G120: 498109.264 | H120: 234074.7122 | J120: 5977311.168 | K120: 2808896.547 | L120: 9 | M120: 998092.768 | N120: 312995.147 | O120: 589948.9 | P120: 95148.721
A121: 10 | B121: Okt | C121: 4008602.511 | D121: 1959036.542 | E121: 491990.1876 | F121: 268147.2176 | G121: 503486.3919 | H121: 238624.3598 | J121: 6041836.703 | K121: 2863492.318 | L121: 10 | M121: 1062618.303 | N121: 367590.918 | O121: 592565.864 | P121: 102461.521
A122: 11 | B122: Nov | C122: 4404462.439 | D122: 2178686.374 | E122: 395859.928 | F122: 219649.8317 | G122: 510147.0675 | H122: 244620.5698 | J122: 6121764.81 | K122: 2935446.837 | L122: 11 | M122: 1142546.41 | N122: 439545.437 | O122: 593653.978 | P122: 109346.995
A123: 12 | B123: Dec | C123: 5046862.86 | D123: 2576728.296 | E123: 642400.4209 | F123: 398041.9215 | G123: 524953.4074 | H123: 261066.0326 | J123: 6299440.889 | K123: 3132792.391 | L123: 12 | M123: 804129.077 | N123: 83340.704 | O123: 5440.972 | P123: 0
A124: 2013 | B124: Jan | C124: 415481.8997 | D124: 154190.2791 | E124: 415481.8997 | F124: 154190.2791 | G124: 475710.8253 | H124: 212132.2756 | J124: 5708529.904 | K124: 2545587.307 | L124: 1 | M124: 308511.204 | N124: 56378.107 | O124: 250133.097 | P124: 2000
A125: 2 | B125: Febr | C125: 889270.9776 | D125: 367786.7933 | E125: 473789.0779 | F125: 213596.5142 | G125: 487907.7396 | H125: 213226.3016 | J125: 5854892.875 | K125: 2558715.619 | L125: 2 | M125: 454874.175 | N125: 69506.419 | O125: 377914.756 | P125: 7453
A126: 3 | B126: Márc | C126: 1374947.979 | D126: 619265.1868 | E126: 485677.0016 | F126: 251478.3935 | G126: 496489.5009 | H126: 215334.4462 | J126: 5957874.011 | K126: 2584013.354 | L126: 3 | M126: 557855.311 | N126: 94804.154 | O126: 449215.857 | P126: 13835.3
A127: 4 | B127: Ápr | C127: 1878013.196 | D127: 850784.7371 | E127: 503065.2166 | F127: 231519.5503 | G127: 515649.5505 | H127: 223838.7669 | J127: 6187794.606 | K127: 2686065.203 | L127: 4 | M127: 778275.906 | N127: 196856.003 | O127: 524623.649 | P127: 56796.254
A128: 5 | B128: Máj | C128: 2379515.187 | D128: 1076534.136 | E128: 501501.9912 | F128: 225749.3988 | G128: 527800.6659 | H128: 230720.7112 | J128: 6333607.991 | K128: 2768648.535 | L128: 5 | M128: 924089.291 | N128: 279439.335 | O128: 575107.921 | P128: 69542.035
A129: 6 | B129: Jún | C129: 2931173.323 | D129: 1301636.4 | E129: 551658.1363 | F129: 225102.264 | G129: 536565.4588 | H129: 232677.0878 | J129: 6438785.506 | K129: 2792125.054 | L129: 6 | M129: 1029266.806 | N129: 302915.854 | O129: 645523.017 | P129: 80827.935
A130: 7 | B130: Júl | C130: 3486138.656 | D130: 1555263.662 | E130: 554965.3326 | F130: 253627.2626 | G130: 542062.8259 | H130: 235297.1503 | J130: 6504753.911 | K130: 2823565.804 | L130: 7 | M130: 1092385.211 | N130: 334356.604 | O130: 664723.872 | P130: 93304.735
A131: 8 | B131: Aug | C131: 3979127.317 | D131: 1773912.125 | E131: 492988.661 | F131: 218648.4625 | G131: 553296.8006 | H131: 243740.7578 | J131: 6639561.607 | K131: 2924889.094 | L131: 8 | M131: 1227192.907 | N131: 435679.894 | O131: 667596.944 | P131: 123916.069
A132: 9 | B132: Szept | C132: 4516176.238 | D132: 2024635.421 | E132: 537048.921 | F132: 250723.2959 | G132: 553959.5039 | H132: 242894.8817 | J132: 6647514.047 | K132: 2914738.581 | L132: 9 | M132: 1235145.347 | N132: 425529.381 | O132: 678496.622 | P132: 131119.344
A133: 10 | B133: Okt | C133: 5102774.859 | D133: 2460161.041 | E133: 586598.6207 | F133: 435525.6203 | G133: 578365.0837 | H133: 251949.6892 | J133: 6940381.004 | K133: 3023396.27 | L133: 10 | M133: 1356746.304 | N133: 534187.07 | O133: 684654.59 | P133: 137904.644
A134: 11 | B134: Nov | C134: 5747504.626 | D134: 2838136.068 | E134: 644729.7676 | F134: 377975.0264 | G134: 591218.5108 | H134: 263492.9643 | J134: 7094622.13 | K134: 3161915.571 | L134: 11 | M134: 1510987.43 | N134: 672706.371 | O134: 689061.576 | P134: 149219.483
A135: 12 | B135: Dec | C135: 6670575.301 | D135: 3443360.998 | E135: 923070.6746 | F135: 605224.9307 | G135: 625766.904 | H135: 304998.9174 | J135: 7509202.848 | K135: 3659987.009 | L135: 12 | M135: 2025568.148 | N135: 1170777.809 | O135: 709472.31 | P135: 145318.029
A136: 2014 | B136: Jan | C136: 458551.5119 | D136: 113865.4251 | E136: 458551.5119 | F136: 113865.4251 | G136: 545866.0994 | H136: 241982.1093 | J136: 6550393.193 | K136: 2903785.312 | L136: 1 | M136: 129147.593 | N136: 203.112 | O136: 128896.181 | P136: 48.3
A137: 2 | B137: Febr | C137: 1077646.383 | D137: 353367.944 | E137: 619094.8714 | F137: 239502.5189 | G137: 632160.8272 | H137: 250394.8441 | J137: 7585929.926 | K137: 3004738.129 | L137: 2 | M137: 1164684.326 | N137: 101155.929 | O137: 1048637.597 | P137: 14890.8
A138: 3 | B138: Márc | C138: 1678733.073 | D138: 593207.6373 | E138: 601086.6902 | F138: 239839.6934 | G138: 593462.702 | H138: 258125.7347 | J138: 7121552.424 | K138: 3097508.817 | L138: 3 | M138: 700306.824 | N138: 193926.617 | O138: 478370.53 | P138: 27871.592
A139: 4 | B139: Ápr | C139: 2373174.318 | D139: 855670.7314 | E139: 694441.2445 | F139: 262463.0941 | G139: 605870.1733 | H139: 257593.7387 | J139: 7270442.08 | K139: 3091124.865 | L139: 4 | M139: 849196.48 | N139: 187542.665 | O139: 587673.297 | P139: 71761.919
A140: 5 | B140: Máj | C140: 2788412.841 | D140: 1118337.506 | E140: 415238.5233 | F140: 262666.775 | G140: 677832.6111 | H140: 323875.8663 | J140: 8133991.333 | K140: 3886510.396 | L140: 5 | M140: 1712845.733 | N140: 982928.196 | O140: 652775.357 | P140: 77142.181
A141: 6 | B141: Jún | C141: 3337130.853 | D141: 1347422.582 | E141: 548718.0117 | F141: 229085.0751 | G141: 625666.7767 | H141: 267729.9434 | J141: 7508001.32 | K141: 3212759.321 | L141: 6 | M141: 1086855.72 | N141: 309177.121 | O141: 696263.416 | P141: 81331.266
A142: 7 | B142: Júl | C142: 3977755.419 | D142: 1650921.706 | E142: 640624.5665 | F142: 303499.1242 | G142: 632196.7309 | H142: 271798.6229 | J142: 7586360.771 | K142: 3261583.475 | L142: 7 | M142: 1165115.171 | N142: 358001.275 | O142: 711294.106 | P142: 95819.79
A143: 8 | B143: Aug | C143: 4542811.415 | D143: 1913861.722 | E143: 565055.9952 | F143: 262940.0158 | G143: 641463.3289 | H143: 277260.058 | J143: 7697559.947 | K143: 3327120.696 | L143: 8 | M143: 1277014.347 | N143: 423538.496 | O143: 739104.281 | P143: 114371.57
A144: 9 | B144: Szept | C144: 5130112.503 | D144: 2191241.71 | E144: 587301.0883 | F144: 277379.9882 | G144: 658425.0407 | H144: 292602.3009 | J144: 7901100.488 | K144: 3511227.611 | L144: 9 | M144: 1480554.888 | N144: 607645.411 | O144: 756790.426 | P144: 116119.051
A145: 10 | B145: Okt | C145: 5738018.294 | D145: 2479839.685 | E145: 607905.7912 | F145: 288597.9755 | G145: 678948.9795 | H145: 310543.8627 | J145: 8147387.754 | K145: 3726526.352 | L145: 10 | M145: 1726842.154 | N145: 822944.152 | O145: 760258.09 | P145: 143639.912
A146: 11 | B146: Nov | C146: 6343037.142 | D146: 2835543.899 | E146: 605018.8478 | F146: 355704.2143 | G146: 683965.0023 | H146: 313077.5758 | J146: 8207580.027 | K146: 3756930.909 | L146: 11 | M146: 1787634.427 | N146: 853948.676 | O146: 763922.836 | P146: 169762.882
A147: 12 | B147: Dec | C147: =+IF(memo!$A$1=$A147,Kiadások!F$41,"") -> 3634077.05 | D147: =+IF(memo!$A$1=$A147,Bevételek!F$41,"") -> 633134.5413 | E147: =+IF(AND(C147<>"",memo!$A$1<>1),C147-C146,C147) -> -2708960.092 | F147: =+IF(AND(D147<>"",memo!$A$1<>1),D147-D146,D147) -> -2202409.358 | G147: =+IF(J147>0,J147/12,"") -> 1344589.55 | H147: =+IF(K147>0,K147/12,"") -> 217546.0954 | J147: =+IF(memo!$A$1=$A147,Kiadások!E$41,"") -> 16135074.6 | K147: =+IF(memo!$A$1=$A147,Bevételek!E$41,"") -> 2610553.145 | L147: 12 | M147: =+IF(memo!$A$1=Munka1!$L147,'Előir.vált.'!G$41,"") -> 2584823.198 | N147: =+IF(memo!$A$1=Munka1!$L147,'Előir.vált.'!H$41,"") -> 184719.3453 | O147: =+IF(memo!$A$1=Munka1!$L147,'Előir.vált.'!I$41,"") -> 1352817.221 | P147: =+IF(memo!$A$1=Munka1!$L147,'Előir.vált.'!J$41,"") -> 1047286.632
B149: 1. E-K oszlopokban lévő képletet egy sorral lejjebb másolni
B150: 2. Utolsó kitöltött sorra: copy value
B157: =+memo!A1 -> 12
B158: A központi költségvetési szervek kiadási teljesítésének százalékos megoszlása
B159: A központi költségvetési szervek bevételi teljesítésének százalékos megoszlása
B160: =+IF(zászlók!$A$20=1,Kiadások!D3,Kiadások!D8) -> February 2026
B161: hónapokban
B162: =IF(B157=1,CONCATENATE(B158,memo!B1,"ban"),CONCATENATE(B158,memo!B1,B161)) -> A központi költségvetési szervek kiadási teljesítésének százalékos megoszlása 2014. január-december hónapokban
B163: =IF(B157=1,CONCATENATE(B159,B160,"ban"),CONCATENATE(B159,B160,B161)) -> A központi költségvetési szervek bevételi teljesítésének százalékos megoszlása February 2026 hónapokban
B164: =+CONCATENATE("Percentage distribution of expenditures of central budgetary institutions ",B160) -> Percentage distribution of expenditures of central budgetary institutions February 2026
B165: =+CONCATENATE("Percentage distribution of revenues of central budgetary institutions ",B160) -> Percentage distribution of revenues of central budgetary institutions February 2026
B167: =+IF(zászlók!$A$20=1,Munka1!B162,Munka1!B164) -> Percentage distribution of expenditures of central budgetary institutions February 2026
B168: =+IF(zászlók!$A$20=1,Munka1!B163,Munka1!B165) -> Percentage distribution of revenues of central budgetary institutions February 2026

Sheet Előir.vált.
C1: Magyar Államkincstár | I1: 3/2. számú melléklet
F2: Központi költségvetési szervek és fejezeti kezelésű előirányzatok kiadási előirányzat-változásai
F3: 2026. február | J3: Millió forint
B4: Hungarian State Treasury | J4: Appendix No. 3/2
E5: Changes in spending appropriations of Central budgetary chapters
E6: February 2026 | J6: Million HUF
C7: Fejezet | D7: Eredeti előirányzat | E7: Törvénnyel módosított előirányzat | F7: Módosított előirányzat | G7: Változás (6=5-4) | I7: V á l t o z á s
H8: Többlet- bevételből | I8: Előirányzat- maradványból | J8: Támoga- tásból
B9: Chapter | D9: Approved appropriation | E9: Amended appropriation | F9: Current appropriation | G9: Difference (5=4-3) | I9: Change
H10: from additional income | I10: from appropriation remained | J10: from support
A11: 1. | B11: 1. | C11: 2. | D11: 3. | E11: 4. | F11: 5. | G11: 6. | H11: 7. | I11: 8. | J11: 9.
A12: I. | B12: PARLIAMENT | C12: ORSZÁGGYŰLÉS | D12: 197144.7 | E12: 197144.7 | F12: 223135.352 | G12: 25990.65204 | H12: 87.924323 | I12: 22213.06051 | J12: 3689.667206
A13: II. | B13: PRESIDENCY | C13: KÖZTÁRSASÁGI ELNÖKSÉG | D13: 6961.5 | E13: 6961.5 | F13: 6974.06 | G13: 12.56 | H13: 0 | I13: 0 | J13: 12.56
A14: III. | B14: CONSTITUTIONAL COURT | C14: ALKOTMÁNYBÍRÓSÁG | D14: 4326.9 | E14: 4326.9 | F14: 5550.9 | G14: 1224 | H14: 0 | I14: 0 | J14: 1224
A15: IV. | B15: OFFICE OF THE COMMISSIONER FOR FUNDAMENTAL RIGHTS | C15: ALAPVETŐ JOGOK BIZTOSÁNAK HIVATALA | D15: 3368.7 | E15: 3368.7 | F15: 3453.537504 | G15: 84.837504 | H15: 0 | I15: 0 | J15: 84.837504
A16: V. | B16: STATE AUDIT OFFICE | C16: ÁLLAMI SZÁMVEVŐSZÉK | D16: 19748.5 | E16: 19748.5 | F16: 19968.20826 | G16: 219.708262 | H16: 0 | I16: 0 | J16: 219.708262
A17: VI. | B17: COURTS | C17: BÍRÓSÁGOK | D17: 218351 | E17: 218351 | F17: 229024.1407 | G17: 10673.14068 | H17: 35.746966 | I17: 37.033607 | J17: 10600.36011
A18: VII. | B18: INTEGRITY AUTHORITY | C18: INTEGRITÁS HATÓSÁG | D18: 14238.2 | E18: 14238.2 | F18: 14304.472 | G18: 66.272 | H18: 0 | I18: 0 | J18: 66.272
A19: VIII. | B19: PROSECUTION SERVICE | C19: ÜGYÉSZSÉG | D19: 94272.7 | E19: 94272.7 | F19: 103653.6232 | G19: 9380.923186 | H19: 0 | I19: 2123.379039 | J19: 7257.544147
A20: X. | B20: MINISTRY OF PUBLIC ADMINISTRATION AND JUSTICE | C20: IGAZSÁGÜGYI MINISZTÉRIUM | D20: 39821 | E20: 39821 | F20: 30348.74624 | G20: -9472.253759 | H20: 46.870864 | I20: 398.589492 | J20: -9917.714115
A21: XI. | B21: PRIME MINISTER'S OFFICE | C21: MINISZTERELNÖKSÉG | D21: 277147.3 | E21: 277147.3 | F21: 288204.9689 | G21: 11057.66886 | H21: 67.17982 | I21: 7669.730488 | J21: 3320.758553
A22: XII. | B22: MINISTRY OF AGRICULTURE | C22: AGRÁRMINISZTÉRIUM | D22: 265697.1 | E22: 265697.1 | F22: 289976.1423 | G22: 24279.04233 | H22: 8222.122333 | I22: 13248.87554 | J22: 2808.044458
A23: XIII. | B23: MINISTRY OF DEFENCE | C23: HONVÉDELMI MINISZTÉRIUM | D23: 2098275.3 | E23: 2098275.3 | F23: 2898878.398 | G23: 800603.0976 | H23: 5461.177787 | I23: 783567.0147 | J23: 11574.9051
A24: XIV. | B24: MINISTRY OF INTERIOR | C24: BELÜGYMINISZTÉRIUM | D24: 5156755.9 | E24: 5156755.9 | F24: 6061646.45 | G24: 904890.5499 | H24: 86645.31585 | I24: 258677.7055 | J24: 559567.5285
A25: XVI. | B25: MINISTRY OF CONSTRUCTION AND TRANSPORT | C25: ÉPÍTÉSI ÉS KÖZLEKEDÉSI MINISZTÉRIUM | D25: 370077 | E25: 370077 | F25: 466081.5704 | G25: 96004.57039 | H25: 71.603232 | I25: 10899.42293 | J25: 85033.54423
A26: XVII. | B26: MINISTRY OF ENERGY | C26: ENERGIAÜGYI MINISZTÉRIUM | D26: 514650.7 | E26: 514650.7 | F26: 587888.5723 | G26: 73237.87234 | H26: 26752.27026 | I26: 40141.6007 | J26: 6344.001376
A27: XVIII. | B27: MINISTRY OF FOREIGN AFFAIRS | C27: KÜLGAZDASÁGI ÉS KÜLÜGYMINISZTÉRIUM | D27: 430911.7 | E27: 430911.7 | F27: 440463.286 | G27: 9551.58599 | H27: 3340.814661 | I27: 7953.582206 | J27: -1742.810877
A28: XIX. | B28: EU-FINANCED DEVELOPMENTS | C28: UNIÓS FEJLESZTÉSEK | D28: 404002 | E28: 404002 | F28: 452612.5928 | G28: 48610.59283 | H28: 501.056316 | I28: 11445.15361 | J28: 36664.3829
A29: XX. | B29: MINISTRY OF CULTURAL AND INNOVATION | C29: KULTURÁLIS ÉS INNOVÁCIÓS MINISZTÉRIUM | D29: 1389377.1 | E29: 1389377.1 | F29: 1623104.892 | G29: 233727.7924 | H29: 28274.73779 | I29: 93890.30602 | J29: 111562.7486
A30: XXI. | B30: CABINET OFFICE OF THE PRIME MINISTER | C30: MINISZTERELNÖKI KABINETIRODA | D30: 336659.6 | E30: 336659.6 | F30: 386551.1749 | G30: 49891.57488 | H30: 795.688147 | I30: 4423.48974 | J30: 44672.397
A31: XXIII. | B31: MINISTRY OF NATIONAL ECONOMY | C31: NEMZETGAZDASÁGI MINISZTÉRIUM | D31: 1155130.4 | E31: 1155130.4 | F31: 1273391.683 | G31: 118261.2827 | H31: 8112.369043 | I31: 44137.5697 | J31: 66011.34394
A32: XXIV. | B32: SOVEREIGNTY PROTECTION OFFICE | C32: SZUVERENITÁSVÉDELMI HIVATAL | D32: 6902.8 | E32: 6902.8 | F32: 6933.52 | G32: 30.72 | H32: 0 | I32: 0 | J32: 30.72
A33: XXV. | B33: MINISTRY OF PUBLIC ADMINISTRATION AND REGIONAL DECELOPMENT | C33: KÖZIGAZGATÁSI ÉS TERÜLETFEJLESZTÉSI MINISZTÉRIUM | D33: 433807.4 | E33: 433807.4 | F33: 603900.3952 | G33: 170092.9952 | H33: 15803.65471 | I33: 47595.01531 | J33: 106694.3252
A34: XXX. | B34: HUNGARIAN COMPETITION AUTHORITY | C34: GAZDASÁGI VERSENYHIVATAL | D34: 4776.9 | E34: 4776.9 | F34: 5450.616462 | G34: 673.716462 | H34: 0 | I34: 621.556462 | J34: 52.16
A35: XXXI. | B35: HUNGARIAN CENTRAL STATISTICAL OFFICE | C35: KÖZPONTI STATISZTIKAI HIVATAL | D35: 17617.9 | E35: 17617.9 | F35: 19139.24796 | G35: 1521.347963 | H35: 406.4 | I35: 820.697304 | J35: 294.250659
A36: XXXII. | B36: DIRECTORATE GENERAL FOR AUDIT OF EUROPEAN FUNDS | C36: EURÓPAI TÁMOGATÁSOKAT AUDITÁLÓ FŐIGAZGATÓSÁG | D36: 5147 | E36: 5147 | F36: 5212.450054 | G36: 65.450054 | H36: 0 | I36: 0 | J36: 65.450054
A37: XXXIII. | B37: HUNGARIAN ACADEMY OF SCIENCES | C37: MAGYAR TUDOMÁNYOS AKADÉMIA | D37: 32912.7 | E37: 32912.7 | F37: 33831.56497 | G37: 918.864966 | H37: 71.88 | I37: 606.443834 | J37: 240.541132
A38: XXXIV. | B38: HUNGARIAN ACADEMY OF ARTS | C38: MAGYAR MŰVÉSZETI AKADÉMIA | D38: 13983.2 | E38: 13983.2 | F38: 14329.45641 | G38: 346.256407 | H38: 22.533156 | I38: 0 | J38: 323.723251
A39: XXXV. | B39: NATIONAL RESEARCH, DEVELOPMENT AND INNOVATION OFFICE | C39: NEMZETI KUTATÁSI FEJLESZTÉSI ÉS INNOVÁCIÓS HIVATAL | D39: 25355.9 | E39: 25355.9 | F39: 25425.68899 | G39: 69.788991 | H39: 0 | I39: 0 | J39: 69.788991
A40: XXXVII. | B40: MINISTRY OF EUROPEAN UNION AFFAIRS | C40: EURÓPAI UNIÓS ÜGYEK MINISZTÉRIUMA | D40: 12830.3 | E40: 12830.3 | F40: 15638.88772 | G40: 2808.587723 | H40: 0 | I40: 2346.994323 | J40: 461.5934
B41: Total | C41: Összesen | D41: 13550251.4 | E41: 13550251.4 | F41: 16135074.6 | G41: 2584823.198 | H41: 184719.3453 | I41: 1352817.221 | J41: 1047286.632
C42: Ebből tárgyhavi: | G42: 1403391.39 | H42: 128209.6659 | I42: 989205.7755 | J42: 285975.949
A44: * A kiadások módosított előirányzata a költségvetési kiadásokon felül tartalmazza a finanszírozási kiadásokat is.
A45: ** A 7. oszlop adata a maradvány és a támogatás kivételével tartalmazza a finanszírozási bevételeket is.

Sheet Bevételek
C1: Magyar Államkincstár | G1: 3/6. számú melléklet
D2: Központi költségvetési szervek és fejezeti kezelésű előirányzatok bevételi előirányzatának és teljesítésének alakulása
D3: 2026. február
B4: Hungarian State Treasury | G4: Millió forint
G5: Appendix No. 3/6
D6: Appropriations of revenues and performance of the Central budgetary chapters
D7: (including current year's pending, overlapping, compensating and not identified revenues)
D8: February 2026 | G8: Million HUF
C9: Fejezet | D9: Eredeti előirányzat | E9: Módosított előirányzat | F9: Teljesítés 2026. I-II. hó | G9: Teljesítés/ módosított előirányzat (%)
B10: Chapter | D10: Amended appropriation | E10: Current appropriation | F10: facts February 2026 | G10: Performance in % of current appropriation
A11: 1. | B11: 1. | C11: 2. | D11: 3. | E11: 4. | F11: 5. | G11: 6.=5./4.
A12: I. | B12: PARLIAMENT | C12: ORSZÁGGYŰLÉS | D12: 27060.3 | E12: 27148.22432 | F12: 6585.885646 | G12: 24.25899229
A13: II. | B13: PRESIDENCY | C13: KÖZTÁRSASÁGI ELNÖKSÉG | D13: 0,0 | E13: 0,0 | F13: 79.566571 | G13: 0
A14: III. | B14: CONSTITUTIONAL COURT | C14: ALKOTMÁNYBÍRÓSÁG | D14: 0,0 | E14: 0,0 | F14: 0.528142 | G14: 0
A15: IV. | B15: OFFICE OF THE COMMISSIONER FOR FUNDAMENTAL RIGHTS | C15: ALAPVETŐ JOGOK BIZTOSÁNAK HIVATALA | D15: 0,0 | E15: 0,0 | F15: 1.304303 | G15: 0
A16: V. | B16: STATE AUDIT OFFICE | C16: ÁLLAMI SZÁMVEVŐSZÉK | D16: 20 | E16: 20 | F16: 1.262624 | G16: 6.31312
A17: VI. | B17: COURTS | C17: BÍRÓSÁGOK | D17: 3069.1 | E17: 3104.846966 | F17: 961.543684 | G17: 30.96911682
A18: VII. | B18: INTEGRITY AUTHORITY | C18: INTEGRITÁS HATÓSÁG | D18: 0,0 | E18: 0,0 | F18: -0.008545 | G18: 0
A19: VIII. | B19: PROSECUTION SERVICE | C19: ÜGYÉSZSÉG | D19: 102 | E19: 102 | F19: 17.846752 | G19: 17.49681569
A20: X. | B20: MINISTRY OF PUBLIC ADMINISTRATION AND JUSTICE | C20: IGAZSÁGÜGYI MINISZTÉRIUM | D20: 150 | E20: 196.870864 | F20: 211.742972 | G20: 107.5542453
A21: XI. | B21: PRIME MINISTER'S OFFICE | C21: MINISZTERELNÖKSÉG | D21: 1652 | E21: 1719.17982 | F21: 875.938896 | G21: 50.95097591
A22: XII. | B22: MINISTRY OF AGRICULTURE | C22: AGRÁRMINISZTÉRIUM | D22: 30467.9 | E22: 38690.02233 | F22: 13206.22605 | G22: 34.13341543
A23: XIII. | B23: MINISTRY OF DEFENCE | C23: HONVÉDELMI MINISZTÉRIUM | D23: 27808.7 | E23: 33269.87779 | F23: 9016.080976 | G23: 27.09983197
A24: XIV. | B24: MINISTRY OF INTERIOR | C24: BELÜGYMINISZTÉRIUM | D24: 1534181.4 | E24: 1620826.716 | F24: 391067.1703 | G24: 24.12763601
A25: XVI. | B25: MINISTRY OF CONSTRUCTION AND TRANSPORT | C25: ÉPÍTÉSI ÉS KÖZLEKEDÉSI MINISZTÉRIUM | D25: 44274 | E25: 44345.60323 | F25: 10875.57603 | G25: 24.52458696
A26: XVII. | B26: MINISTRY OF ENERGY | C26: ENERGIAÜGYI MINISZTÉRIUM | D26: 51583.8 | E26: 78336.07027 | F26: 41634.15006 | G26: 53.14812183
A27: XVIII. | B27: MINISTRY OF FOREIGN AFFAIRS | C27: KÜLGAZDASÁGI ÉS KÜLÜGYMINISZTÉRIUM | D27: 13052.2 | E27: 16393.01466 | F27: 3689.125598 | G27: 22.50425364
A28: XIX. | B28: EU-FINANCED DEVELOPMENTS | C28: UNIÓS FEJLESZTÉSEK | D28: 359806.8 | E28: 360307.8563 | F28: 51513.38474 | G28: 14.29704733
A29: XX. | B29: MINISTRY OF CULTURAL AND INNOVATION | C29: KULTURÁLIS ÉS INNOVÁCIÓS MINISZTÉRIUM | D29: 46602.8 | E29: 74877.53779 | F29: 41357.03681 | G29: 55.23290165
A30: XXI. | B30: CABINET OFFICE OF THE PRIME MINISTER | C30: MINISZTERELNÖKI KABINETIRODA | D30: 1179.8 | E30: 1975.488147 | F30: 378.058913 | G30: 52.11830883
A31: XXIII. | B31: MINISTRY OF NATIONAL ECONOMY | C31: NEMZETGAZDASÁGI MINISZTÉRIUM | D31: 163198.4 | E31: 171310.769 | F31: 27244.06017 | G31: 15.90329687
A32: XXIV. | B32: SOVEREIGNTY PROTECTION OFFICE | C32: SZUVERENITÁSVÉDELMI HIVATAL | D32: 0,0 | E32: 0,0 | F32: 46.949751 | G32: 0
A33: XXV. | B33: MINISTRY OF PUBLIC ADMINISTRATION AND REGIONAL DECELOPMENT | C33: KÖZIGAZGATÁSI ÉS TERÜLETFEJLESZTÉSI MINISZTÉRIUM | D33: 102515.1 | E33: 118318.7547 | F33: 25245.5448 | G33: 21.33689191
A34: XXX. | B34: HUNGARIAN COMPETITION AUTHORITY | C34: GAZDASÁGI VERSENYHIVATAL | D34: 87.1 | E34: 87.1 | F34: 46.104612 | G34: 52.93296441
A35: XXXI. | B35: HUNGARIAN CENTRAL STATISTICAL OFFICE | C35: KÖZPONTI STATISZTIKAI HIVATAL | D35: 828.7 | E35: 1235.1 | F35: 59.116088 | G35: 4.786340215
A36: XXXII. | B36: DIRECTORATE GENERAL FOR AUDIT OF EUROPEAN FUNDS | C36: EURÓPAI TÁMOGATÁSOKAT AUDITÁLÓ FŐIGAZGATÓSÁG | D36: 286.8 | E36: 286.8 | F36: 75.678468 | G36: 26.38719247
A37: XXXIII. | B37: HUNGARIAN ACADEMY OF SCIENCES | C37: MAGYAR TUDOMÁNYOS AKADÉMIA | D37: 11430.5 | E37: 11502.38 | F37: 1422.846441 | G37: 12.37001769
A38: XXXIV. | B38: HUNGARIAN ACADEMY OF ARTS | C38: MAGYAR MŰVÉSZETI AKADÉMIA | D38: 0 | E38: 22.533156 | F38: 67.746798 | G38: 300.6538365
A39: XXXV. | B39: NATIONAL RESEARCH, DEVELOPMENT AND INNOVATION OFFICE | C39: NEMZETI KUTATÁSI FEJLESZTÉSI ÉS INNOVÁCIÓS HIVATAL | D39: 6476.4 | E39: 6476.4 | F39: 7481.19875 | G39: 115.5147729
A40: XXXVII. | B40: MINISTRY OF EUROPEAN UNION AFFAIRS | C40: EURÓPAI UNIÓS ÜGYEK MINISZTÉRIUMA | D40: 0 | E40: 0 | F40: -27.125104 | G40: 0
B41: Total | C41: Összesen | D41: 2425833.8 | E41: 2610553.145 | F41: 633134.5413 | G41: 24.25288841

Sheet Kiadások
C1: Magyar Államkincstár | G1: 3/7. számú melléklet
D2: Központi költségvetési szervek és fejezeti kezelésű előirányzatok kiadási előirányzatának és teljesítésének alakulása
D3: 2026. február
B4: Hungarian State Treasury | G4: Millió forint
G5: Appendix No. 3/7
D6: Appropriations of expenditures and performance of the Central budgetary chapters
D7: (including current year's pending, overlapping, compensating and not identified expenditures)
D8: February 2026 | G8: Million HUF
C9: Fejezet | D9: Eredeti előirányzat | E9: Módosított előirányzat | F9: Teljesítés 2026.I-II. hó | G9: Teljesítés/ módosított előirányzat (%)
B10: Chapter | D10: Amended appropriation | E10: Current appropriation | F10: facts February 2026 | G10: Performance in % of current appropriation
A11: 1. | B11: 1. | C11: 2. | D11: 3. | E11: 4. | F11: 5. | G11: 6.=5./4.
A12: I. | B12: PARLIAMENT | C12: ORSZÁGGYŰLÉS | D12: 197144.7 | E12: 223135.352 | F12: 62442.81281 | G12: 27.98427602
A13: II. | B13: PRESIDENCY | C13: KÖZTÁRSASÁGI ELNÖKSÉG | D13: 6961.5 | E13: 6974.06 | F13: 1195.277243 | G13: 17.13890106
A14: III. | B14: CONSTITUTIONAL COURT | C14: ALKOTMÁNYBÍRÓSÁG | D14: 4326.9 | E14: 5550.9 | F14: 676.948228 | G14: 12.19528776
A15: IV. | B15: OFFICE OF THE COMMISSIONER FOR FUNDAMENTAL RIGHTS | C15: ALAPVETŐ JOGOK BIZTOSÁNAK HIVATALA | D15: 3368.7 | E15: 3453.537504 | F15: 506.400288 | G15: 14.66323407
A16: V. | B16: STATE AUDIT OFFICE | C16: ÁLLAMI SZÁMVEVŐSZÉK | D16: 19748.5 | E16: 19968.20826 | F16: 2745.106911 | G16: 13.74738722
A17: VI. | B17: COURTS | C17: BÍRÓSÁGOK | D17: 218351 | E17: 229024.1407 | F17: 32145.34499 | G17: 14.03578893
A18: VII. | B18: INTEGRITY AUTHORITY | C18: INTEGRITÁS HATÓSÁG | D18: 14238.2 | E18: 14304.472 | F18: 865.921693 | G18: 6.053503359
A19: VIII. | B19: PROSECUTION SERVICE | C19: ÜGYÉSZSÉG | D19: 94272.7 | E19: 103653.6232 | F19: 12612.96876 | G19: 12.16838193
A20: X. | B20: MINISTRY OF PUBLIC ADMINISTRATION AND JUSTICE | C20: IGAZSÁGÜGYI MINISZTÉRIUM | D20: 39821 | E20: 30348.74624 | F20: 3559.27832 | G20: 11.7279254
A21: XI. | B21: PRIME MINISTER'S OFFICE | C21: MINISZTERELNÖKSÉG | D21: 277147.3 | E21: 288204.9689 | F21: 117734.1855 | G21: 40.85085209
A22: XII. | B22: MINISTRY OF AGRICULTURE | C22: AGRÁRMINISZTÉRIUM | D22: 265697.1 | E22: 289976.1423 | F22: 41088.99043 | G22: 14.16978311
A23: XIII. | B23: MINISTRY OF DEFENCE | C23: HONVÉDELMI MINISZTÉRIUM | D23: 2098275.3 | E23: 2898878.398 | F23: 370678.1055 | G23: 12.78694911
A24: XIV. | B24: MINISTRY OF INTERIOR | C24: BELÜGYMINISZTÉRIUM | D24: 5156755.9 | E24: 6061646.45 | F24: 1492996.282 | G24: 24.63021052
A25: XVI. | B25: MINISTRY OF CONSTRUCTION AND TRANSPORT | C25: ÉPÍTÉSI ÉS KÖZLEKEDÉSI MINISZTÉRIUM | D25: 370077 | E25: 466081.5704 | F25: 185704.4785 | G25: 39.84377206
A26: XVII. | B26: MINISTRY OF ENERGY | C26: ENERGIAÜGYI MINISZTÉRIUM | D26: 514650.7 | E26: 587888.5723 | F26: 157572.8002 | G26: 26.80317455
A27: XVIII. | B27: MINISTRY OF FOREIGN AFFAIRS | C27: KÜLGAZDASÁGI ÉS KÜLÜGYMINISZTÉRIUM | D27: 430911.7 | E27: 440463.286 | F27: 95056.89013 | G27: 21.58111542
A28: XIX. | B28: EU-FINANCED DEVELOPMENTS | C28: UNIÓS FEJLESZTÉSEK | D28: 404002 | E28: 452612.5928 | F28: 67616.40486 | G28: 14.93913469
A29: XX. | B29: MINISTRY OF CULTURAL AND INNOVATION | C29: KULTURÁLIS ÉS INNOVÁCIÓS MINISZTÉRIUM | D29: 1389377.1 | E29: 1623104.892 | F29: 404814.1938 | G29: 24.94072908
A30: XXI. | B30: CABINET OFFICE OF THE PRIME MINISTER | C30: MINISZTERELNÖKI KABINETIRODA | D30: 336659.6 | E30: 386551.1749 | F30: 132345.3104 | G30: 51.73403948
A31: XXIII. | B31: MINISTRY OF NATIONAL ECONOMY | C31: NEMZETGAZDASÁGI MINISZTÉRIUM | D31: 1155130.4 | E31: 1273391.683 | F31: 315508.8653 | G31: 24.77704775
A32: XXIV. | B32: SOVEREIGNTY PROTECTION OFFICE | C32: SZUVERENITÁSVÉDELMI HIVATAL | D32: 6902.8 | E32: 6933.52 | F32: 1074.711108 | G32: 15.50022367
A33: XXV. | B33: MINISTRY OF PUBLIC ADMINISTRATION AND REGIONAL DECELOPMENT | C33: KÖZIGAZGATÁSI ÉS TERÜLETFEJLESZTÉSI MINISZTÉRIUM | D33: 433807.4 | E33: 603900.3952 | F33: 111481.618 | G33: 18.46026578
A34: XXX. | B34: HUNGARIAN COMPETITION AUTHORITY | C34: GAZDASÁGI VERSENYHIVATAL | D34: 4776.9 | E34: 5450.616462 | F34: 731.467121 | G34: 13.41989711
A35: XXXI. | B35: HUNGARIAN CENTRAL STATISTICAL OFFICE | C35: KÖZPONTI STATISZTIKAI HIVATAL | D35: 17617.9 | E35: 19139.24796 | F35: 2301.558692 | G35: 12.02533504
A36: XXXII. | B36: DIRECTORATE GENERAL FOR AUDIT OF EUROPEAN FUNDS | C36: EURÓPAI TÁMOGATÁSOKAT AUDITÁLÓ FŐIGAZGATÓSÁG | D36: 5147 | E36: 5212.450054 | F36: 673.108409 | G36: 12.91347451
A37: XXXIII. | B37: HUNGARIAN ACADEMY OF SCIENCES | C37: MAGYAR TUDOMÁNYOS AKADÉMIA | D37: 32912.7 | E37: 33831.56497 | F37: 3012.355888 | G37: 8.903980324
A38: XXXIV. | B38: HUNGARIAN ACADEMY OF ARTS | C38: MAGYAR MŰVÉSZETI AKADÉMIA | D38: 13983.2 | E38: 14329.45641 | F38: 1779.070119 | G38: 12.41547529
A39: XXXV. | B39: NATIONAL RESEARCH, DEVELOPMENT AND INNOVATION OFFICE | C39: NEMZETI KUTATÁSI FEJLESZTÉSI ÉS INNOVÁCIÓS HIVATAL | D39: 25355.9 | E39: 25425.68899 | F39: 13191.88868 | G39: 51.88409521
A40: XXXVII. | B40: MINISTRY OF EUROPEAN UNION AFFAIRS | C40: EURÓPAI UNIÓS ÜGYEK MINISZTÉRIUMA | D40: 12830.3 | E40: 15638.88772 | F40: 1964.706108 | G40: 12.56295296
B41: Total | C41: Összesen | D41: 13550251.4 | E41: 16135074.6 | F41: 3634077.05 | G41: 22.52284009

Sheet Részarány
C1: Magyar Államkincstár | N1: 3/8. számú melléklet
H2: Központi költségvetési szervek és fejezeti kezelésű előirányzatok kiadásainak és bevételeinek alakulása kiemelt előirányzatonként
C3: KIADÁS | N3: Millió forint
B4: Hungarian State Treasury | N4: Appendix No. 3/8
H5: Expenditures and revenues of the central budgetary chapters by enhanced appropriations
B6: EXPENDITURES | N6: Million HUF
D7: 2025. évi | E7: 2025. I-II. hó | F7: 2025. I-II. hó | I7: 2026. I-II. hó | J7: 2026. I-II. hó | L7: 2025. I-II. hó | M7: 2026. I-II. hó | N7: 2026. I-II. hó
A8: Rovat
A9: száma | C9: Megnevezés | D9: módosított előirányzat | E9: tény | F9: részarány (%) | G9: 2025. évi eredeti előirányzat | H9: 2025. évi módosított előirányzat | I9: tény | J9: részarány (%) | K9: tény/ bázis (%) | L9: tény/módosított előirányzat (%) | M9: tény/eredeti előirányzat (%) | N9: tény/módosított előirányzat (%) | O9: =+IF(zászlók!$A$20=1,"11. számú melléklet","Appendix No. 11") -> Appendix No. 11
E11: Feb 2025 | F11: Feb 2025 | I11: Feb 2026 | J11: Feb 2026 | L11: Feb 2025 | M11: Feb 2026 | N11: Feb 2026
B12: Chapter | D12: 2025. | G12: 2025. | H12: 2025. | L12: index (%) | M12: index (%) | N12: index (%)
D13: current appropriation | E13: performance | F13: proportion | G13: Amended appropriation | H13: Current appropriaton | I13: total performance | J13: proportion (total performance) (%) | K13: index (%) (total performance / base) | L13: total performance/ current appr. | M13: total performance/ current appr. | N13: total performance/ current appr.
B14: 1. | C14: 1. | D14: 2. | E14: 3. | F14: 4. | G14: 5. | H14: 6. | I14: 7. | J14: 8. | K14: 9.=7./3. | L14: 10.=3./2. | M14: 11.=7./5. | N14: 12.=7./6.
A15: 11 | B15: Labour allowances | C15: Személyi juttatások (K1) | D15: 4758566.802 | E15: 726339.6993 | F15: 34.50279653 | G15: 4981663.487 | H15: 5650432.38 | I15: 1259364.228 | J15: 34.65430728 | K15: 173.3850193 | L15: 15.2638332 | M15: 25.27999394 | N15: 22.28792671 | O15: =+IF(zászlók!$A$20=1,Részarány!C15,Részarány!B15) -> Labour allowances
A16: 12 | B16: Employers' contribution and social contribution tax | C16: Munkaadókat terhelő járulékok és szociális hozzájárulási adó (K2) | D16: 634575.4988 | E16: 94816.35824 | F16: 4.503993819 | G16: 652184.5723 | H16: 751257.4258 | I16: 151491.7212 | J16: 4.168643624 | K16: 159.7738239 | L16: 14.94169857 | M16: 23.22835094 | N16: 20.16508803 | O16: =+IF(zászlók!$A$20=1,Részarány!C16,Részarány!B16) -> Employers' contribution and social contribution tax
A17: 13 | B17: Real costs*1 | C17: Dologi kiadások (K3) | D17: 2867512.937 | E17: 256887.5376 | F17: 12.20274542 | G17: 2376651.974 | H17: 2968389.371 | I17: 235566.4345 | J17: 6.482152999 | K17: 91.70021898 | L17: 8.958548512 | M17: 9.911692458 | N17: 7.935833378 | O17: =+IF(zászlók!$A$20=1,Részarány!C17,Részarány!B17) -> Real costs*1
A18: 14 | B18: Money granted to supplied people | C18: Ellátottak pénzbeli juttatásai (K4) | D18: 51030.76849 | E18: 4374.663273 | F18: 0.2078065084 | G18: 39451.8 | H18: 39529.30427 | I18: 3436.152262 | J18: 0.09455364361 | K18: 78.54666857 | L18: 8.572599243 | M18: 8.709747748 | N18: 8.692670729 | O18: =+IF(zászlók!$A$20=1,Részarány!C18,Részarány!B18) -> Money granted to supplied people
B19: Other operation-purpose subsidies and expenditures | C19: Egyéb működési célú kiadások (K5) | D19: 3751064.775 | E19: 533269.6524 | F19: 25.33152784 | G19: 3937296.267 | H19: 4342859.747 | I19: 1285678.532 | J19: 35.37840598 | K19: 241.0935118 | L19: 14.21648743 | M19: 32.65384277 | N19: 29.60442213 | O19: =+IF(zászlók!$A$20=1,Részarány!C19,Részarány!B19) -> Other operation-purpose subsidies and expenditures
A20: 21 | B20: Investments*2 | C20: Beruházások (K6) | D20: 1333601.864 | E20: 27087.71838 | F20: 1.28672856 | G20: 642211.2684 | H20: 1132779.989 | I20: 25040.21351 | J20: 0.6890391473 | K20: 92.44120589 | L20: 2.031169804 | M20: 3.899061687 | N20: 2.210509875 | O20: =+IF(zászlók!$A$20=1,Részarány!C20,Részarány!B20) -> Investments*2
A21: 22 | B21: Renovation | C21: Felújítások (K7) | D21: 68567.79995 | E21: 1544.17123 | F21: 0.07335166425 | G21: 49619.5 | H21: 84671.60972 | I21: 3328.200091 | J21: 0.09158309099 | K21: 215.533098 | L21: 2.252035549 | M21: 6.70744383 | N21: 3.930715504 | O21: =+IF(zászlók!$A$20=1,Részarány!C21,Részarány!B21) -> Renovation
B22: Other accumulation expenditure | C22: Egyéb felhalmozási célú kiadások (K8) | D22: 1617671.056 | E22: 183957.905 | F22: 8.738421116 | G22: 871172.5316 | H22: 1165154.771 | I22: 445484.457 | J22: 12.25853087 | K22: 242.1665201 | L22: 11.37177452 | M22: 51.13619184 | N22: 38.23392979 | O22: =+IF(zászlók!$A$20=1,Részarány!C22,Részarány!B22) -> Other accumulation expenditure
B23: Expenditure approved by Budget Law | C23: Költségvetési kiadások | D23: 15082591.5 | E23: 1828277.705 | F23: 86.84737146 | G23: 13550251.4 | H23: 16135074.6 | I23: 3409389.938 | J23: 93.81721664 | K23: 186.4809667 | L23: 12.12177433 | M23: 25.16108253 | N23: 21.13030168 | O23: =+IF(zászlók!$A$20=1,Részarány!C23,Részarány!B23) -> Expenditure approved by Budget Law
A24: - | B24: Not identified expenditures | C24: Egyéb sajátos kiadások elszámolása (R36111, R3661, R3662, R3631, R3651, R3652, R3658, R3659, R3657, R36411, R36413) * | D24: 0 | E24: 276884.1143 | F24: 13.15262854 | G24: 0 | H24: 0 | I24: 224687.1112 | J24: 6.182783364 | K24: 81.14842984 | L24: 0 | M24: 0 | N24: 0 | O24: =+IF(zászlók!$A$20=1,Részarány!C24,Részarány!B24) -> Not identified expenditures
B25: Total of expenditure | C25: Kiadások összesen | D25: 15082591.5 | E25: 2105161.82 | F25: 100 | G25: 13550251.4 | H25: 16135074.6 | I25: 3634077.05 | J25: 100 | K25: 172.6269694 | L25: 13.95756041 | M25: 26.81925923 | N25: 22.52284009 | O25: =+IF(zászlók!$A$20=1,Részarány!C25,Részarány!B25) -> Total of expenditure
B26: Financing expenditure | C26: Finanszírozási kiadások (K9-es rovathoz tartozó ERA kódok) | D26: 0 | E26: 0 | F26: 0 | G26: 0 | H26: 0 | I26: 0 | J26: 0 | K26: 0 | L26: 0 | M26: 0 | N26: 0
B27: Total | C27: Kiadások összesen finanszírozási kiadásokkal együtt | D27: 15082591.5 | E27: 2105161.82 | F27: 100 | G27: 13550251.4 | H27: 16135074.6 | I27: 3634077.05 | J27: 100 | K27: 172.6269694 | L27: 13.95756041 | M27: 26.81925923 | N27: 22.52284009
B28: Expenditure without deposit accounts’ turnover and financing expenses | C28: Kiadások a letéti számlák forgalma, valamint a finanszírozási kiadások nélkül | D28: 15082591.5 | E28: 2105119.954 | G28: 13550251.4 | H28: 16135074.6 | I28: 3634048.254 | K28: 172.6290346 | L28: 13.95728283 | M28: 26.81904673 | N28: 22.52266162
C29: * A sor tartalma: Számlák és házipénztár között pénzforgalom; December havi illetmények, munkabérek elszámolása; Utalványok, bérletek és más hasonló, készpénz-helyettesítő fizetési eszköznek nem minösülő elszámolásai; Azonosítás alatt álló kiadások; Adott előlegek; Továbbadási célból folyósított támogatások, ellátások elszámolása (utal); Részesedés szerzés esetén átadott eszközök; Letétre, megőrzésre, fedezetkezelésre átadott pénzeszközök, biztosítékok; Folyósított, megelőlegezett társadalombiztosítási és családtámogatási ellátások elszámolása; Adott előleghez kapcsolódó előzetesen felszámított levonható általános forgalmi adó; Adott előleghez kapcsolódó előzetesen felszámított nem levonható általános forgalmi adó.
O30: =+IF(zászlók!$A$20=1,Részarány!C30,Részarány!B30) -> 0
C31: BEVÉTEL | O31: =+IF(zászlók!$A$20=1,Részarány!C31,Részarány!B31) -> 0
O32: =+IF(zászlók!$A$20=1,Részarány!C32,Részarány!B32) -> 0
B33: REVENUES | O33: =+IF(zászlók!$A$20=1,Részarány!C33,Részarány!B33) -> REVENUES
D34: 2025. évi | E34: 2025. I-II. hó | F34: 2025. I-II. hó | G34: 2025. évi | H34: 2025. évi | I34: 2026. I-II. hó | J34: 2026. I-II. hó | L34: 2025. I-II. hó | M34: 2026. I-II. hó | N34: 2026. I-II. hó
A35: Rovat
A36: száma | C36: Megnevezés | D36: módosított előirányzat | E36: tény | F36: részarány (%) | G36: eredeti előirányzat | H36: módosított előirányzat | I36: tény | J36: részarány (%) | K36: tény/ bázis (%) | L36: tény/módosított előirányzat (%) | M36: tény/eredeti előirányzat (%) | N36: tény/módosított előirányzat (%) | O36: =+IF(zászlók!$A$20=1,"11. számú melléklet","Appendix No. 11") -> Appendix No. 11
E38: =E11 -> Feb 2025 | F38: =F11 -> Feb 2025 | I38: =I11 -> Feb 2026 | J38: =J11 -> Feb 2026 | L38: =L11 -> Feb 2025 | M38: =+I38 -> Feb 2026 | N38: =+I38 -> Feb 2026
B39: Chapter | D39: =D12 -> 2025. | G39: =G12 -> 2025. | H39: =H12 -> 2025. | L39: index (%) | M39: index (%) | N39: index (%)
D40: current appropriation | E40: performance | F40: proportion | G40: Amended appropriation | H40: Current appropriaton | I40: total performance | J40: proportion (total performance) (%) | K40: index (%) (total performance / base) | L40: total performance/ current appr. | M40: total performance/ current appr. | N40: total performance/ current appr.
B41: 1. | C41: 1. | D41: 2. | E41: 3. | F41: 4. | G41: 5. | H41: 6. | I41: 7. | J41: 8. | K41: 9.=7./3. | L41: 10.=3./2. | M41: 11.=7./5. | N41: 12.=7./6.
B42: Revenue related to the power of the state | C42: Működési célú támogatások államháztartáson belülről (B1) | D42: 1533481.503 | E42: 336470.8287 | F42: 65.04482866 | G42: 1612599.8 | H42: 1737726.51 | I42: 415414.7985 | J42: 65.61240485 | K42: 123.4623519 | L42: 21.94162942 | M42: 25.76056369 | N42: 23.9056489 | O42: =+IF(zászlók!$A$20=1,Részarány!C42,Részarány!B42) -> Revenue related to the power of the state
A43: 31 | B43: Operational revenue of institutions | C43: Felhalmozási célú támogatások államháztartáson belülről (B2) | D43: 28694.07538 | E43: 29343.82851 | F43: 5.672599627 | G43: 242574 | H43: 262787.7585 | I43: 38676.67733 | J43: 6.10876122 | K43: 131.8051505 | L43: 102.2644156 | M43: 15.94427982 | N43: 14.71783828 | O43: =+IF(zászlók!$A$20=1,Részarány!C43,Részarány!B43) -> Operational revenue of institutions
A44: 33 | B44: Subsidy-like operational revenue | C44: Közhatalmi bevételek (B3) | D44: 146560.01 | E44: 16364.39888 | F44: 3.16348233 | G44: 185004.754 | H44: 185149.9204 | I44: 26170.68015 | J44: 4.13351009 | K44: 159.924482 | L44: 11.16566441 | M44: 14.14595008 | N44: 14.13485898 | O44: =+IF(zászlók!$A$20=1,Részarány!C44,Részarány!B44) -> Subsidy-like operational revenue
A45: 34 | B45: Receipt of previous year's operation-purpose appropriation's balance *7 | C45: Működési bevételek (B4) | D45: 273647.8342 | E45: 41596.21435 | F45: 8.041168519 | G45: 274838.046 | H45: 274883.6417 | I45: 37064.00359 | J45: 5.854048574 | K45: 89.10427106 | L45: 15.20063715 | M45: 13.48576157 | N45: 13.48352465 | O45: =+IF(zászlók!$A$20=1,Részarány!C45,Részarány!B45) -> Receipt of previous year's operation-purpose appropriation's balance *7
B46: Receipt of operation-purpose funds and revenue | C46: Felhalmozási bevételek (B5) | D46: 1617.8 | E46: 50.423795 | F46: 0.009747671496 | G46: 2529.1 | H46: 2534.895478 | I46: 109.704859 | J46: 0.01732725856 | K46: 217.5656533 | L46: 3.116812647 | M46: 4.337703491 | N46: 4.327786291 | O46: =+IF(zászlók!$A$20=1,Részarány!C46,Részarány!B46) -> Receipt of operation-purpose funds and revenue
B47: Accumulation revenue | C47: Működési célú átvett pénzeszközök (B6) | D47: 12790.29313 | E47: 5380.051911 | F47: 1.040044262 | G47: 4061.7 | H47: 37939.71414 | I47: 38051.67089 | J47: 6.010045008 | K47: 707.2733037 | L47: 42.06355443 | M47: 936.8409999 | N47: 100.2950912 | O47: =+IF(zászlók!$A$20=1,Részarány!C47,Részarány!B47) -> Accumulation revenue
A48: 36 | B48: Subsidy-like accumulation revenue | C48: Felhalmozási célú átvett pénzeszközök (B7) | D48: 394958.1286 | E48: 14732.28742 | F48: 2.847970847 | G48: 104226.4 | H48: 109530.7048 | I48: 25449.50232 | J48: 4.019604154 | K48: 172.7464419 | L48: 3.73008842 | M48: 24.41752025 | N48: 23.23503932 | O48: =+IF(zászlók!$A$20=1,Részarány!C48,Részarány!B48) -> Subsidy-like accumulation revenue
B49: Revenues approved by Budget Law | C49: Költségvetési bevételek | D49: 2391749.645 | E49: 443938.0336 | F49: 85.81984191 | G49: 2425833.8 | H49: 2610553.145 | I49: 580937.0376 | J49: 91.75570115 | K49: 130.8599385 | L49: 18.56122502 | M49: 23.94793236 | N49: 22.25340781 | O49: =+IF(zászlók!$A$20=1,Részarány!C49,Részarány!B49) -> Revenues approved by Budget Law
A50: 0.007 | B50: Not identified revenues | C50: Egyéb sajátos bevételek elszámolása (R3673, R3632, R3671, R36531, R3672, R3678, R3676, R36421) ** | D50: 0 | E50: 73352.63449 | F50: 14.18015809 | G50: 0 | H50: 0 | I50: 52197.50369 | J50: 8.244298847 | K50: 71.15968506 | L50: 0 | M50: 0 | N50: 0 | O50: =+IF(zászlók!$A$20=1,Részarány!C50,Részarány!B50) -> Not identified revenues
B51: Total of revenues | C51: Bevételek összesen: | D51: 2391749.645 | E51: 517290.6681 | F51: 100 | G51: 2425833.8 | H51: 2610553.145 | I51: 633134.5413 | J51: 100 | K51: 122.3943482 | L51: 21.62812773 | M51: 26.0996669 | N51: 24.25288841 | O51: =+IF(zászlók!$A$20=1,Részarány!C51,Részarány!B51) -> Total of revenues
B52: Financing revenue without remain and subsidies | C52: Finanszírozási bevételek maradvány és támogatás nélkül (B8-as rovathoz tartozó ERA kódok, kivéve: B813,B814, B816) | D52: 0 | E52: 0 | F52: 0 | G52: 0 | H52: 0 | I52: 0 | J52: 0 | K52: 0 | L52: 0 | M52: 0 | N52: 0
B53: Total | C53: Bevételek összesen finanszírozási bevételekkel együtt | D53: 2391749.645 | E53: 517290.6681 | F53: 100 | G53: 2425833.8 | H53: 2610553.145 | I53: 633134.5413 | J53: 100 | K53: 122.3943482 | L53: 21.62812773 | M53: 26.0996669 | N53: 24.25288841
B54: Revenue without housing subsidies granted by the employer, tax on savings interest on government securities, deposit accounts’ turnover, and financing revenue. | C54: Bevételek a munkáltatói lakástámogatás, az állampapír kamatadó és a letéti számlák forgalma, valamint a finanszírozási bevételek nélkül | D54: 2391749.645 | E54: 516965.7392 | G54: 2425833.8 | H54: 2610553.145 | I54: 627238.5493 | K54: 121.3307772 | L54: 21.61454232 | M54: 25.85661678 | N54: 24.0270362
C55: ** A sor tartalma: Más szervezetet megillető bevételek elszámolása; Azonosítás alatt álló bevételek; Kapott előlegek; Más által beszedett bevételek elszámolása; Továbbadási célból folyósított támogatások, ellátások elszámolása (fogad); Letétre, megőrzésre, fedezetkezelésre átvett pénzeszközök, biztosítékok; Nem társadalombiztosítás pénzügyi alapjait terhelő kifizetett ellátások és a társadalombiztosítás pénzügyi alapjai egymás közötti elszámolásai megtérítésének elszámolása; Kapott előleghez kapcsolódó fizetendő általános forgalmi adó.
